Cogmind - Beta 12 @@@ ROGUE MODE // 2023.05.28 @ 06:59:39 Player: maxwell Result: Establishing 0b11! Performance ------------- Evolutions (9) 4500 Regions Visited (40) 8000 Robots Destroyed (449) 2245 Value Destroyed (19955) 19955 Prototype IDs (326) 6520 Alien Tech Used (5) 1000 Bonus (35558) 35558 TOTAL SCORE: 77778 Bonus ------- High Alert Combat Kills 1757 Follower Combat Kills 4288 Entered Garrisons 200 Used RIF Installer 500 Network Hubs Disabled 200 Aligned with FarCom 300 Met Data Miner 300 Destroyed Z-Imprinter 1000 Triggered Deep Caves Wall 500 Exposed GOLEM Chamber 500 Met Zhirov 300 Built Enhanced Grunts 300 A7 Reached Mainframe 300 Met R17 at Cetus 500 Found Hidden Lab 3000 Met R17 at Research 2000 Destroyed MAIN.C Guards 500 Met MAIN.C 5000 Destroyed MAIN.C Shell 5000 Destroyed MAIN.C 10000 Win 3000 Friendly Fire -3887 Cogmind --------- Core Integrity 851/1600 Matter 694/700 Energy 558/580 System Corruption 50% Temperature Cool (59) Movement Treading (155) Location 0b11 Command Parts ------- > --- POWER (2) -------- Particle Reactor Particle Reactor > --- PROPULSION (7) --- Armored Treads Heavy Siege Treads Biometal Medium Treads Biometal Heavy Treads Experimental Biometal Medium Treads > --- UTILITY (13) ----- Advanced Heat Sink Advanced Coolant Injector Huge Storage Unit Advanced Matter Compressor Improved Weapon Cycler SHELL Armor Thermal Barrier EM Disruption Field Improved Shield Generator (fused) Long-range Tractor Beam > --- WEAPON (4) ------- (None) > --- INVENTORY (25) --- Particle Reactor Particle Reactor Small Matter Pod (50) Weapon Shielding Heavy Reflective Plating Advanced Focal Shield Improved Thermal Shield Antimissile System Long-range Tractor Beam Spacefold Activator Gamma Rifle Hypervelocity Railgun Helical Railgun Assault Cannon Linear Accelerator Linear Accelerator Compact Linear Accelerator Graviton Cannon Enhanced Gamma Bomb Array Ragnarok Missile Launcher Peak State ------------ > --- POWER ------------ Compact Particle Reactor Quantum Reactor > --- PROPULSION ------- Armored Medium Treads Biometal Medium Treads Biometal Heavy Treads Advanced Heavy Siege Treads Experimental Biometal Medium Treads > --- UTILITY ---------- Huge Storage Unit Advanced Sensor Array Advanced Signal Interpreter Experimental Transmission Jammer Experimental Powered Armor SHELL Armor Deep Network Scanner Ghost Barrier Relay Coupler [NC] Microwarp Drive > --- WEAPON ----------- Hypervelocity Railgun Helical Railgun Helical Railgun Enhanced Gamma Bomb Array > --- INVENTORY -------- Heavy Siege Treads Biometal Heavy Treads Advanced Heat Sink Advanced Matter Compressor Advanced Sensor Array Experimental Transmission Jammer Advanced Focal Shield EM Disruption Field Antimissile System Antimissile System Long-range Tractor Beam Long-range Tractor Beam Transdimensional Reconstructor Spacefold Activator Warp Cannon Hypervelocity Railgun Helical Railgun Linear Accelerator Linear Accelerator Compact Linear Accelerator Graviton Cannon Ragnarok Missile Launcher Guided Remote Datajack [Rating: 243] Favorites ----------- Power Enhanced Nuclear Core Engine Deuterium Engine Power Core Enhanced Nuclear Core Reactor Compact Particle Reactor Propulsion Assembled Alloy Leg Treads Light Treads Leg Assembled Alloy Leg Wheel Armored Huge Wheel Utility Huge Storage Unit Device GOLEM Unit Storage Huge Storage Unit Processor Improved Signal Interpreter Hackware Relay Coupler [Programmer] Protection Assembled Alloy Armor Artifact Microwarp Drive Weapon Assembled Focal Cannon Energy Gun Improved Medium Laser Energy Cannon Assembled Focal Cannon Ballistic Gun Helical Railgun Ballistic Cannon Compact Linear Accelerator Launcher Shock Bomb Launcher Special Weapon Guided Remote Datajack Impact Weapon Great Maul Special Melee Weapon Advanced Datajack Build | -11 -10 -10 -9 -9 -9 -8 -8 -7 -7 -7 -7 -7 -7 -7 -6 -6 -6 -6 -6 -6 -6 -5 -5 -5 -5 -5 -5 -4 -4 -4 -4 -3 -3 -3 -3 -2 -2 -2 -1 -1 ------- Run | Jun Mat Min Mat Min Exi Min Mat Fac Was Fac Low Low Zio Dee Pro Fac Gar Fac Low Low Dat Pro Fac Ext Cet Arc Hub Fac Upp Upp Zhi Pro Res Arm Lab Res Tes Sec Acc Com Slots Evolved 18 | . . . 2 . . . 2 2 . . . . . . . 2 . . . . . . 2 . . . . 2 . . . . 2 . . 2 . . 2 . Power 1 | . . . . . . . . 1 . . . . . . . . . . . . . . . . . . . . . . . . . . . . . . . . Propulsion 4 | . . . . . . . . . . . . . . . . . . . . . . . 2 . . . . 1 . . . . 1 . . . . . . . Utility 11 | . . . 2 . . . 2 1 . . . . . . . 1 . . . . . . . . . . . 1 . . . . 1 . . 2 . . 1 . Weapon 2 | . . . . . . . . . . . . . . . . 1 . . . . . . . . . . . . . . . . . . . . . . 1 . Parts Attached 591 | 2 14 4 32 . 44 2 22 24 15 15 11 14 8 47 4 15 10 4 4 3 3 4 31 15 12 14 17 31 11 5 3 3 8 . 12 14 12 15 21 66 Power 44 | . 1 . 2 . 6 . . 1 3 . . 1 . 3 . 2 2 . . . . . 6 . 6 2 . 3 . . . . 2 . . . . . 1 3 Engine 13 | . 1 . 2 . 3 . . 1 . . . 1 . 3 . . . . . . . . 2 . . . . . . . . . . . . . . . . . Core 11 | . . . . . 2 . . . 1 . . . . . . 2 2 . . . . . 3 . . . . 1 . . . . . . . . . . . . Reactor 20 | . . . . . 1 . . . 2 . . . . . . . . . . . . . 1 . 6 2 . 2 . . . . 2 . . . . . 1 3 Propulsion 46 | 2 . . 4 . 6 . . . 1 . . . . . . . . . . . . . 4 . . 4 1 6 3 . . 1 1 . 4 2 . 1 1 5 Treads 29 | 2 . . 4 . 4 . . . . . . . . . . . . . . . . . . . . 4 1 1 . . . . . . 4 2 . 1 1 5 Leg 15 | . . . . . 2 . . . . . . . . . . . . . . . . . 4 . . . . 4 3 . . 1 1 . . . . . . . Wheel 2 | . . . . . . . . . 1 . . . . . . . . . . . . . . . . . . 1 . . . . . . . . . . . . Hover . | . . . . . . . . . . . . . . . . . . . . . . . . . . . . . . . . . . . . . . . . . Flight . | . . . . . . . . . . . . . . . . . . . . . . . . . . . . . . . . . . . . . . . . . Utility 326 | . 3 4 10 . 17 1 7 14 8 7 6 9 5 29 3 12 6 3 4 . 2 3 16 14 4 6 13 17 8 5 3 2 5 . 8 10 4 5 12 41 Device 208 | . 1 4 2 . 8 . 3 7 5 2 2 6 3 11 3 9 5 3 4 . 2 1 13 14 1 5 9 13 5 5 1 2 5 . 4 8 1 3 9 29 Storage 17 | . 2 . . . 2 . . . . 1 . . . 1 . . 1 . . . . . . . 1 . 1 . 1 . . . . . 1 1 . . . 5 Processor 11 | . . . 1 . . . . 1 . 1 1 1 . . . . . . . . . . 1 . . . . 1 2 . . . . . 1 . . . . 1 Hackware 16 | . . . 1 . . . . 2 . . . . . . . 3 . . . . . . . . . . . 2 . . 1 . . . 1 1 2 1 2 . Protection 70 | . . . 6 . 7 1 4 4 3 3 3 2 2 17 . . . . . . . 2 2 . 2 1 3 1 . . 1 . . . 1 . 1 1 . 3 Artifact 4 | . . . . . . . . . . . . . . . . . . . . . . . . . . . . . . . . . . . . . . . 1 3 Weapon 175 | . 10 . 16 . 15 1 15 9 3 8 5 4 3 15 1 1 2 1 . 3 1 1 5 1 2 2 3 5 . . . . . . . 2 8 9 7 17 Energy Gun 29 | . 6 . 4 . . . . . 2 2 2 . 1 7 . . . . . . . . 2 . 1 . . 1 . . . . . . . . . . . 1 Energy Cannon 42 | . . . 5 . . . . 4 . 5 1 2 1 3 . 1 1 1 . 1 . 1 2 1 1 1 3 2 . . . . . . . 1 1 1 2 1 Ballistic Gun 44 | . . . 2 . 14 1 8 1 1 . . . 1 2 . . . . . . . . . . . . . . . . . . . . . . 1 5 2 6 Ballistic Cannon 11 | . . . . . . . . . . . . . . . . . . . . . . . . . . . . . . . . . . . . . 4 . 1 6 Launcher 37 | . 4 . 4 . 1 . 5 2 . 1 2 2 . 3 1 . 1 . . 2 1 . 1 . . . . 1 . . . . . . . . 1 2 . 3 Special Weapon 2 | . . . . . . . . . . . . . . . . . . . . . . . . . . . . . . . . . . . . 1 . 1 . . Impact Weapon 5 | . . . 1 . . . 2 2 . . . . . . . . . . . . . . . . . . . . . . . . . . . . . . . . Slashing Weapon . | . . . . . . . . . . . . . . . . . . . . . . . . . . . . . . . . . . . . . . . . . Piercing Weapon . | . . . . . . . . . . . . . . . . . . . . . . . . . . . . . . . . . . . . . . . . . Special Melee Weapon 5 | . . . . . . . . . . . . . . . . . . . . . . . . . . 1 . 1 . . . . . . . . 1 . 2 . Unidentified Prototypes 51 | . 1 2 2 . 6 . 1 . . 2 1 . 1 6 . 1 . . . . . . 2 . 4 . 1 . . . 2 . . 1 3 2 4 2 3 4 Corrupted Parts 7 | . . . . . . . . . . . . . . . . . . . . . . . . . . 1 1 . 2 . . . . . . . . 3 . . System Corruption 54 | . . . . . . . . . . . . . . . . . . . . . . . . . . 6 4 . 6 . . . . . . . . 38 . . Parts Lost 72 | . . . 2 . 1 . 1 4 1 1 . 2 . 3 2 . 2 . . 1 . 3 8 . . 1 7 23 . 2 . . . . . 1 . 1 . 6 Power 4 | . . . . . . . . . . . . . . . . . . . . . . . . . . . 1 3 . . . . . . . . . . . . Propulsion 14 | . . . 1 . 1 . . . . . . . . . . . . . . . . . 1 . . . 1 8 . . . . . . . . . 1 . 1 Utility 40 | . . . 1 . . . 1 3 1 1 . 2 . 3 2 . 1 . . 1 . 2 5 . . 1 4 6 . 2 . . . . . 1 . . . 3 Weapon 14 | . . . . . . . . 1 . . . . . . . . 1 . . . . 1 2 . . . 1 6 . . . . . . . . . . . 2 Highest Loss Streak 6 | . . . 1 . 1 . 1 2 1 1 . 2 . 2 1 . 1 . . 1 . 3 4 . . 1 4 6 . 1 . . . . . 1 . 1 . 1 To Critical Strikes 4 | . . . . . . . 1 1 . . . . . . . . . . . . . . . . . . . 2 . . . . . . . . . . . . Average Slot Usage (%) 88 | . 96 100 98 100 86 100 97 98 85 89 91 91 82 85 84 90 91 91 92 91 81 99 95 94 98 99 97 81 79 88 80 88 91 . 78 89 92 81 83 78 Engine 3 | . 13 14 10 11 9 . . 6 1 . . 3 7 6 13 . . . . . . . . . . . . . . . . . . . . . . . . . Core 3 | . . . . . . . . . 5 7 7 7 7 4 . 9 13 13 13 13 13 13 9 5 1 . . . . . . . . . . . . . . . Reactor 3 | . . . . . 1 11 9 7 6 7 7 3 . 1 . 1 . . . . . . . 5 9 11 11 6 5 5 4 5 5 . 9 8 8 8 6 6 Treads 7 | . 28 28 22 22 18 . . . . . . . . . . . . . . . . . . . . 10 22 7 . . . . . . 17 20 25 20 19 19 Leg 8 | . . . . . 3 22 18 15 . . . . . 4 15 13 12 13 13 13 13 13 21 23 23 12 . 7 18 26 25 25 28 . 9 4 . . . . Wheel 1 | . . . . . . . . . 7 7 7 7 7 4 . . . . . . . . . . . . . 1 . . . . . . . . . . . . Device 17 | . 10 14 9 11 11 4 6 4 12 16 22 14 20 14 14 23 25 26 25 25 20 31 22 17 18 22 21 24 19 21 15 15 20 . 14 22 21 9 7 21 Storage 9 | . 14 14 11 11 11 11 9 7 7 7 7 7 7 10 7 13 12 13 13 13 13 13 11 11 11 11 11 5 9 10 10 10 9 . 7 4 4 4 3 4 Processor 3 | . . . . . . . . 5 7 4 6 11 13 7 7 6 5 . . . . . 1 5 5 5 5 6 4 5 5 5 2 . . 4 4 4 3 1 Hackware 2 | . . . 2 11 4 . . 10 7 3 . . . . . 2 . . . . . . . . . . . 2 . . 4 5 4 . 4 8 12 12 14 3 Protection 9 | . . . 19 11 12 28 35 23 11 18 15 17 9 13 8 . . 6 6 6 6 7 7 5 8 5 4 3 4 5 5 5 4 . 3 6 5 8 9 4 Energy Gun 3 | . 24 28 8 . . . . . 1 6 6 7 . 4 . . . . . . . . 3 . 3 5 . . 5 4 . . . . . . . . . . Energy Cannon 7 | . . . 8 . . . . 3 3 7 6 6 3 6 7 12 18 18 20 17 13 14 12 14 12 11 16 9 9 9 8 14 14 . 8 6 4 2 . . Ballistic Gun 2 | . 1 . 3 22 14 22 17 8 2 . . . 2 . . . . . . . . . . . . . . . . . . . . . . . . 2 8 5 Launcher 1 | . 2 . 1 . . . . . . . . . . 1 7 6 1 . . 2 . 4 . 2 . . . 1 . . . . . . . . . 1 1 . Naked Turns . | . . . . . . . . . . . . . . . . . . . . . . . . . . . . . . . . . . . . . . . . . Heaviest Build 208 | 13 54 54 70 59 73 73 92 104 105 151 162 147 140 153 144 163 145 151 152 154 147 159 162 155 161 156 161 166 166 169 175 175 176 161 161 154 165 175 190 208 Greatest Support 257 | 40 40 40 40 40 60 60 60 60 28 28 28 28 28 60 60 60 60 60 60 60 60 60 102 99 99 112 112 86 155 155 135 135 160 160 138 246 246 250 257 257 Greatest Overweight (x) 6 | . 1 1 1 1 3 1 1 1 3 5 5 5 4 5 2 2 2 2 2 2 2 2 1 1 1 2 1 6 2 1 1 1 1 1 5 1 . . . . Average Overweight (x) 1 | . . 1 1 1 1 1 1 1 2 3 4 4 4 3 2 2 2 2 2 2 2 2 1 1 1 1 1 1 1 1 . 1 . 1 . . . . . . Largest Inventory Capacity 25 | 8 20 20 20 20 20 20 20 20 20 25 25 25 25 25 25 25 25 25 25 25 25 25 25 25 25 25 25 25 25 25 25 25 25 25 25 25 25 25 25 25 Average Capacity 23 | 8 13 20 20 20 20 20 20 20 20 21 25 25 25 25 25 25 23 25 25 25 25 25 25 25 25 25 25 25 24 25 25 25 25 25 19 25 25 25 25 25 Most Carried 25 | 8 10 19 20 20 20 20 20 20 20 25 25 24 25 25 25 25 25 25 25 25 23 20 25 25 25 25 25 25 25 25 25 24 25 25 25 25 25 25 25 25 Average Carried 21 | 6 8 17 19 20 18 20 19 19 18 20 24 22 24 20 23 24 22 25 24 24 22 19 22 24 24 24 24 22 20 24 23 24 22 25 8 22 24 24 24 20 Final Capacity 25 | 8 20 20 20 20 20 20 20 20 20 25 25 25 25 25 25 25 25 25 25 25 25 25 25 25 25 25 25 25 25 25 25 25 25 25 25 25 25 25 25 25 Final Carried 25 | 4 9 19 20 20 20 20 20 20 19 25 24 24 25 25 23 25 25 25 25 23 20 18 25 24 25 25 25 21 25 23 24 24 25 25 23 23 24 24 25 21 Class Distribution -------------------- 37% | Mutant 21% | Golem 15% | Scavenger-Mutant 3% | Commander-Golem 3% | Bothacker-Mutant Dominant Class ---------------- Mutant | -10/Materials Mutant | -10/Mines Mutant | -9/Materials Scavenger-Mutant | -9/Mines Mutant | -9/Exiles Mutant | -8/Mines Mutant | -8/Materials Mutant | -7/Factory Scavenger-Mutant | -7/Waste Mutant | -7/Factory Scavenger-Mutant | -7/Lower Caves Skirmisher | -7/Lower Caves Mutant | -7/Zion Mutant | -7/Deep Caves Golem | -6/Proximity Caves Golem | -6/Factory Golem | -6/Garrison Golem | -6/Factory Golem | -6/Lower Caves Golem | -6/Lower Caves Mutant | -6/Data Miner Mutant | -5/Proximity Caves Mutant | -5/Factory Scavenger-Skirmisher | -5/Extension Scavenger-Tank | -5/Cetus Scavenger-Tank | -5/Archives Scavenger-Skirmisher | -5/Hub_04(d) Bothacker-Mutant | -4/Factory Commander-Golem | -4/Upper Caves Golem | -4/Upper Caves Golem | -4/Zhirov Golem | -3/Proximity Caves Bothacker-Golem | -3/Research Bothacker-Golem | -3/Armory Mutant | -3/Lab Bothacker-Mutant | -2/Research Bothacker-Mutant | -2/Testing Hacker-Mutant | -2/Section 7 Hacker-Mutant | -1/Access Scavenger-Mutant | -1/Command Resources | -11 -10 -10 -9 -9 -9 -8 -8 -7 -7 -7 -7 -7 -7 -7 -6 -6 -6 -6 -6 -6 -6 -5 -5 -5 -5 -5 -5 -4 -4 -4 -4 -3 -3 -3 -3 -2 -2 -2 -1 -1 ----------- Run | Jun Mat Min Mat Min Exi Min Mat Fac Was Fac Low Low Zio Dee Pro Fac Gar Fac Low Low Dat Pro Fac Ext Cet Arc Hub Fac Upp Upp Zhi Pro Res Arm Lab Res Tes Sec Acc Com Matter Collected 16758 | 163 305 161 508 76 1176 79 716 343 276 284 111 245 60 673 328 175 139 80 46 94 . 151 254 315 160 141 151 142 467 99 . 161 92 . . 305 126 421 1310 6425 Remotely 5698 | . . . . . . . . . . . . . . . . . . . . . . . . . . . . . . . . . 10 . . . . 105 690 4893 Salvage Created 23358 | . 609 106 1115 185 619 43 1219 576 220 747 154 227 . 1191 862 449 652 191 236 232 . 1065 1414 815 302 306 105 1154 403 790 . 507 777 . . 707 . 90 1042 4248 Parts 1157 | . 48 7 83 7 70 1 76 38 20 33 9 16 . 52 40 23 25 12 5 9 . 30 74 23 8 18 5 55 21 34 . 17 19 . . 25 . 6 55 193 Haulers Intercepted 10 | . 2 . 2 . . . 3 . . . . . . . . . . . . . . . . . . . . . . . . . 3 . . . . . . . Recyclers Shooed 11 | . . . 1 . . . 1 . . . . . . . . 1 . . . . . . 4 . . . 1 1 . . . . . . . . . . 1 1 Parts Field Recycled . | . . . . . . . . . . . . . . . . . . . . . . . . . . . . . . . . . . . . . . . . . Retrieved Matter . | . . . . . . . . . . . . . . . . . . . . . . . . . . . . . . . . . . . . . . . . . Parts Self-Destructed 114 | . . . . . . . . . . . 7 1 3 . 1 . . . . 7 . 18 . . . . . . 33 27 . 17 . . . . . . . . Prevented 66 | . . . . . . . . . . . . 4 . . 33 . . . . . . 12 . . . . . . 15 2 . . . . . . . . . . Kills | -11 -10 -10 -9 -9 -9 -8 -8 -7 -7 -7 -7 -7 -7 -7 -6 -6 -6 -6 -6 -6 -6 -5 -5 -5 -5 -5 -5 -4 -4 -4 -4 -3 -3 -3 -3 -2 -2 -2 -1 -1 ------- Run | Jun Mat Min Mat Min Exi Min Mat Fac Was Fac Low Low Zio Dee Pro Fac Gar Fac Low Low Dat Pro Fac Ext Cet Arc Hub Fac Upp Upp Zhi Pro Res Arm Lab Res Tes Sec Acc Com Combat Hostiles Destroyed 330 | . 16 3 26 4 5 1 21 12 . 9 6 5 . 6 15 5 12 3 4 10 . 13 22 8 4 3 3 17 6 10 . 8 5 . . 13 . 5 10 40 Melee 2 | . . . 1 . . . . . . . . . . . . . . . . . . . . . . . . . . . . . . . . . . . . 1 Guns 72 | . 2 3 11 4 3 1 12 1 . 4 . 1 . 1 . . . . . . . . 1 . . . . . . . . . . . . . . . 9 19 Cannons 136 | . . . 9 . . . . 1 . 4 2 1 . 1 . 2 7 3 4 1 . 8 18 6 2 3 3 8 6 9 . 8 5 . . 10 . . 1 14 AOE 88 | . 13 . 5 . 2 . 9 8 . . 4 2 . 1 9 3 4 . . 8 . 3 . . . . . 8 . . . . . . . . . 5 . 4 Classes Destroyed 31 | . 8 . 3 1 3 1 . 1 2 . 2 1 . 4 . . 1 . . . . . 1 . . . 1 . 1 . . . . . . . . . . 1 Worker 22 | . 2 . 3 . . . 4 2 . 3 . . . . . 1 . . . . . . . . . . . . . . . . 1 . . . . . . 6 Builder 12 | . 2 . 1 . . . . 4 . . . . . . . . . . . . . . 2 . . . . 1 . . . . . . . . . . 2 . Tunneler 4 | . 1 . . . . . . . . . . . . . . . . . . . . . . . . . . 2 . . . . 1 . . . . . . . Hauler 10 | . 2 . 2 . . . 3 . . . . . . . . . . . . . . . . . . . . . . . . . 3 . . . . . . . Recycler 13 | . 1 1 1 . . . 2 2 . 2 . . . . . 1 . . . . . . 2 . . . . 1 . . . . . . . . . . . . Minesweeper 1 | . . . . . . . . . . . 1 . . . . . . . . . . . . . . . . . . . . . . . . . . . . . Mechanic 1 | . . . . . . . . . . . . . . . . 1 . . . . . . . . . . . . . . . . . . . . . . . . Operator 10 | . . . 1 . . . 2 . . . . . . . . 1 . . . . . . . . . 3 . 3 . . . . . . . . . . . . Drone 1 | . . . . . . . . . . . . 1 . . . . . . . . . . . . . . . . . . . . . . . . . . . . Turret 1 | . . . . . 1 . . . . . . . . . . . . . . . . . . . . . . . . . . . . . . . . . . . Watcher 22 | . 3 . 1 . . . 2 2 . 2 . . . . . 3 . . . . . . 3 . 1 . . 1 . . . . 1 . . 1 . . 2 . Swarmer 68 | . 6 3 9 . . . 2 2 . . 4 . . . 4 3 . . . 8 . . 8 . . . 2 . 1 . . 3 . . . 8 . 5 . . Cutter 2 | . . . . . . . . . . . . . . . . . 2 . . . . . . . . . . . . . . . . . . . . . . . Grunt 121 | . 10 . 12 3 . . 9 9 . 6 1 2 . . 7 . 8 . . . . 8 4 3 . . . 10 3 6 . 4 4 . . 4 . . 3 5 Brawler 11 | . . . . 1 . . 1 . . 1 . . . . . . . . . . . 3 1 . 1 . . 2 . . . . . . . . . . . 1 Duelist 7 | . . . 1 . . . . . . . . 1 . . . . . . . . . 3 1 . . . . . . 1 . . . . . . . . . . Protector 1 | . . . . . . . . . . . . . . . . . . . . . . . . . . . . . . . . . . . . . . . . 1 Sentry 34 | . . . 4 . . . 7 . . . . . . . 1 . 1 2 . 2 . . 2 5 . 3 . . 1 1 . 1 . . . 1 . . 1 2 Demolisher 1 | . . . . . . . . . . . . . . . . . . . . . . . . . . . . . . . . . 1 . . . . . . . Specialist 1 | . . . . . . . . . . . . . . . . . . . . . . . 1 . . . . . . . . . . . . . . . . . Hunter 20 | . . . . . . 1 2 . . . . . . . 3 . . . . . . . 2 . . . . 4 1 . . . . . . . . . 6 1 Programmer 35 | . . . . . . . . 1 . 2 . . . . . 2 1 1 . . . . 3 . . . . 2 . 2 . . . . . . . . . 21 Heavy 1 | . . . . . . . . . . . . . . . . . . . . . . . . . . . 1 . . . . . . . . . . . . . Cetus Guard 3 | . . . . . . . . . . . . . . . . . . . . . . . . . 3 . . . . . . . . . . . . . . . M Guard 2 | . . . . . . . . . . . . . . . . . . . . . . . . . . . . . . . . . . . . . . . . 2 Enhanced Grunt 1 | . . . . . . . . . . . . . . . . . . . . . . 1 . . . . . . . . . . . . . . . . . . Combat Programmer 2 | . . . . . . . . . . . . . . . . . . . . . . . . . . . . . . . . . . . . . . . . 2 Zionite 8 | . . . . . 8 . . . . . . . . . . . . . . . . . . . . . . . . . . . . . . . . . . . Z-Technician 5 | . . . . . . . . . . . . . . 5 . . . . . . . . . . . . . . . . . . . . . . . . . . Z-Light 3 | . . . . . . . . . . . . . . 3 . . . . . . . . . . . . . . . . . . . . . . . . . . Decomposer 2 | . . . . . . . . . . . 1 . . . . . . . . . . . . . . . . . . 1 . . . . . . . . . . Samaritan 1 | . . . . . . . . . . . . . . . . . . . . . . . . . . . . . 1 . . . . . . . . . . . Master Thief 3 | . . . . . . . . . . . 1 2 . . . . . . . . . . . . . . . . . . . . . . . . . . . . Assembler 2 | . . . . . . . . . . . . . . 2 . . . . . . . . . . . . . . . . . . . . . . . . . . Assembled 4 | . . . . . 4 . . . . . . . . . . . . . . . . . . . . . . . . . . . . . . . . . . . Golem 3 | . . . . . . . . . . . . . . 3 . . . . . . . . . . . . . . . . . . . . . . . . . . Surgeon 1 | . . . . . . . . . 1 . . . . . . . . . . . . . . . . . . . . . . . . . . . . . . . Wasp 1 | . . . . . . . . . 1 . . . . . . . . . . . . . . . . . . . . . . . . . . . . . . . Thug 10 | . . . . . . . . . . . . . . . . . . . 4 . . . . 4 . . . . . 1 . . . . . . . . . 1 Savage 2 | . . . . . . . . . . . . . . 2 . . . . . . . . . . . . . . . . . . . . . . . . . . Butcher 2 | . . . . . . . . . . . . . . . . . . . . . . . . 2 . . . . . . . . . . . . . . . . Martyr 2 | . . . . . . . . . 2 . . . . . . . . . . . . . . . . . . . . . . . . . . . . . . . Fireman 3 | . . . . . . . . . . . . . . 1 . . . . . . . . . . . . . . . . . . . . . . . . . 2 Best Kill Streak 11 | . 5 3 4 2 4 1 8 11 . 4 4 3 . 4 4 4 7 1 4 4 . 8 5 2 4 2 2 7 2 4 . 2 3 . . 4 . 3 4 4 Combat Bots Only 8 | . 5 3 4 2 4 1 5 5 . 2 4 3 . 2 4 3 7 1 4 4 . 8 4 2 4 1 2 5 2 4 . 2 3 . . 4 . 3 4 4 Max Kills in Single Turn 6 | . 2 1 2 1 2 1 5 5 2 2 3 1 . 2 1 2 1 1 1 3 . 2 2 6 1 1 1 5 1 1 . 1 2 . . 1 . 2 1 2 Gunslinging . | . . . . . . . . . . . . . . . . . . . . . . . . . . . . . . . . . . . . . . . . . Exploded 4 | . 2 . 2 . 2 . 2 2 . . 3 1 . 1 1 2 1 . . 3 . 1 . . . . . 4 . . . . . . . . . 2 . 1 Melee 1 | . . . 1 . . . . . . . . . . . . . . . . . . . . . . . . . . . . . . . . . . . . 1 Uniques/NPCs Destroyed 7 | . . . . . 4 . . . . . . . . 1 . . . . . . . . . . . . . . . . . . . . . . . . . 2 8R-AWN (-9/Exiles) EX-HEX (-9/Exiles) EX-DEC (-9/Exiles) EX-BIN (-9/Exiles) Z-Imprinter (-7/Deep Caves) MAIN.C Shell (-1/Command) MAIN.C (-1/Command) Combat | -11 -10 -10 -9 -9 -9 -8 -8 -7 -7 -7 -7 -7 -7 -7 -6 -6 -6 -6 -6 -6 -6 -5 -5 -5 -5 -5 -5 -4 -4 -4 -4 -3 -3 -3 -3 -2 -2 -2 -1 -1 -------- Run | Jun Mat Min Mat Min Exi Min Mat Fac Was Fac Low Low Zio Dee Pro Fac Gar Fac Low Low Dat Pro Fac Ext Cet Arc Hub Fac Upp Upp Zhi Pro Res Arm Lab Res Tes Sec Acc Com Damage Taken 31932 | . 213 237 1009 251 617 16 1032 1056 74 400 268 289 90 1406 955 289 674 119 86 198 . 389 1894 283 815 525 1401 3329 231 676 . 411 250 . . 719 675 160 2018 8877 Core 2785 | . 40 61 126 67 97 . 88 58 . 15 53 16 17 154 132 16 80 5 17 6 . 12 166 9 80 19 176 390 13 59 . 61 35 . . 31 19 17 250 400 Absorbed by Shields 2648 | . . . . . . . 182 178 . . . . . . . . 26 . . 79 . 81 300 152 146 . . . . . . . . . . . . . . 1504 Reduced by Siege Mode 880 | . . . . . . . . . . . . . . . . . . . . . . . . . . . . . . . . . . . . . . . 85 795 Redirected to Shielding 362 | . . . 6 . . . . . . 9 9 11 . 189 138 . . . . . . . . . . . . . . . . . . . . . . . . . Regen/Repaired (Parts) 4680 | . . . 11 . . . . . 22 9 . . 44 . . . . . . . . . . . . . . . . . . . . . . . 197 92 583 3722 Core Remaining (%) 66 | 100 . 59 . . . 27 84 . . . . . . . 36 . . . . . . 84 . . . . 55 . . . . 54 . . 88 . . 95 . 53 Volleys Fired 1494 | . 42 8 67 19 84 3 81 28 14 37 9 17 1 81 42 19 30 5 6 15 . 41 93 21 30 28 14 45 28 29 . 26 19 . 61 39 22 18 53 319 Largest 4 | . 2 2 2 2 2 2 2 2 1 2 2 2 1 2 1 2 3 3 3 3 . 2 3 3 3 3 3 3 3 2 . 3 3 . 1 1 1 1 3 4 Hottest 278 | . 112 112 143 43 60 55 48 60 30 111 180 110 30 118 36 115 140 163 163 163 . 113 240 210 240 200 218 278 138 50 . 75 75 . 25 100 100 100 118 272 Shots Fired 2741 | . 67 19 125 38 152 6 152 43 14 71 16 26 1 110 42 29 47 13 18 28 . 53 165 52 73 61 35 96 59 58 1 43 52 . 61 39 22 16 111 727 Gun 1209 | . 49 19 60 38 151 6 142 30 14 26 6 8 . 69 . . . . . . . . 29 . 10 15 . 3 1 . . . . . . . . . 88 445 Cannon 1351 | . . . 56 . . . . 5 . 44 7 9 1 30 . 24 36 13 18 23 . 35 136 49 63 46 35 89 58 58 1 43 52 . 61 37 16 7 23 276 Launcher 167 | . 18 . 9 . 1 . 10 8 . 1 3 9 . 11 42 5 11 . . 5 . 18 . 3 . . . 4 . . . . . . . . . 3 . 6 Special 14 | . . . . . . . . . . . . . . . . . . . . . . . . . . . . . . . . . . . . 2 6 6 . . Kinetic 1202 | . 3 . 12 38 151 6 142 30 14 . . . . 9 . . . . . . . . . . . . . . . . . . . . . . 1 . 99 697 Thermal 1290 | . 46 19 104 . . . . 5 . 70 13 17 1 33 . 24 36 13 18 23 . 35 165 49 73 61 35 92 59 58 1 43 52 . 61 37 15 7 12 13 Explosive 69 | . 18 . 9 . 1 . 10 8 . 1 3 . . . . . 1 . . 5 . . . 3 . . . 4 . . . . . . . . . 3 . 3 Electromagnetic 143 | . . . . . . . . . . . . 9 . 45 42 5 10 . . . . 18 . . . . . . . . . . . . . . . . . 14 Phasic 23 | . . . . . . . . . . . . . . 23 . . . . . . . . . . . . . . . . . . . . . . . . . . Robot Hit Streak 81 | . 10 14 10 6 23 2 20 14 4 17 6 7 . 19 8 4 9 5 9 7 . 8 16 7 14 8 9 9 7 12 . 14 10 . . 35 36 40 49 81 Robot Miss Streak 7 | . 3 2 5 2 6 2 2 5 2 3 3 3 . 6 2 2 2 2 1 3 . 3 5 5 2 4 2 7 3 2 . 1 2 . . . . . 3 5 Penetration Max 2 | . . . . . . . . . 1 . . . . 2 . . . . . . . . . . . . . . . . . . . . . . . . 1 1 Secondary Targets 10 | . . . 1 . 1 . 1 . . . . . . . . . . . . . . . . . . . . . . . . . . . . . . . 2 5 Max Gunslinging Chain 1 | . . . 1 . 1 . 1 . . . . . . . . . . . . . . . . . . . . . . . . . . . . . . . 1 1 Shots Hit Robots 1803 | . 31 11 70 26 95 3 110 33 9 45 10 19 . 66 26 11 25 6 12 16 . 31 99 31 52 40 24 52 29 41 . 26 36 . . 30 7 4 74 603 Core Hits 936 | . 36 4 40 8 39 3 60 33 6 21 14 13 . 41 24 15 20 4 6 10 . 33 37 40 20 17 6 76 15 15 . 11 18 . . 12 . 5 33 201 Critical Kills 35 | . . . . . 2 . 1 1 4 . . . . 1 . . 1 . . 1 . . 2 1 . . . . . . . . . . . 4 . . 8 9 Critical Parts Destroyed 57 | . . . 1 . 4 . . 1 1 . . . . . . . . . . . . . . . . . . . . . . . . . . . . . 9 41 Critical Strikes 133 | . 3 . 4 . 7 . 1 2 8 2 . . . 1 . . 1 . . 1 . . 2 1 . . . . . . . . . . . 4 . . 17 79 Burn 8 | . 3 . 3 . . . . . . 2 . . . . . . . . . . . . . . . . . . . . . . . . . . . . . . Meltdown 10 | . . . . . . . . . . . . . . . . . 1 . . 1 . . 2 1 . . . . . . . . . . . 4 . . 1 . Destroy 103 | . . . . . 7 . 1 1 8 . . . . 1 . . . . . . . . . . . . . . . . . . . . . . . . 16 69 Blast 10 | . . . . . . . . . . . . . . . . . . . . . . . . . . . . . . . . . . . . . . . . 10 Smash 2 | . . . 1 . . . . 1 . . . . . . . . . . . . . . . . . . . . . . . . . . . . . . . . Melee Attacks 45 | . . . 6 . . . 1 12 . . . . . . . . . . . . . . . . . . . 5 . . . . . . . . 11 . 8 2 Impact 19 | . . . 6 . . . 1 12 . . . . . . . . . . . . . . . . . . . . . . . . . . . . . . . . Slashing . | . . . . . . . . . . . . . . . . . . . . . . . . . . . . . . . . . . . . . . . . . Piercing . | . . . . . . . . . . . . . . . . . . . . . . . . . . . . . . . . . . . . . . . . . Sneak Attacks 2 | . . . . . . . . 1 . . . . . . . . . . . . . . . . . . . . . . . . . . . . . . 1 . Combat Hostiles . | . . . . . . . . . . . . . . . . . . . . . . . . . . . . . . . . . . . . . . . . . Follow-up Attacks . | . . . . . . . . . . . . . . . . . . . . . . . . . . . . . . . . . . . . . . . . . Damage Inflicted 65560 | . 1424 223 1980 351 1666 32 2997 1909 206 1216 532 669 . 2327 1426 1411 1343 301 589 1329 . 1823 4122 1658 1669 1342 925 3587 1459 1859 . 1121 1776 . . 1501 . 1475 1315 17997 Guns 16143 | . 388 221 826 348 1477 32 1569 298 206 444 120 184 . 1135 . . . . . . . . 549 . 148 166 . 25 27 . . . . . . . . . 815 7165 Cannons 33906 | . . . 509 . . . . 92 . 732 215 161 . 568 . 639 834 301 589 714 . 1030 3573 1025 1521 1176 925 1704 1432 1859 . 1121 1776 . . 1501 . . 500 9409 Explosions 14637 | . 1036 . 423 . 163 . 1383 1198 . 40 197 324 . 624 1426 772 509 . . 615 . 793 . 633 . . . 1858 . . . . . . . . . 1475 . 1168 Melee 483 | . . . 187 . . . . 296 . . . . . . . . . . . . . . . . . . . . . . . . . . . . . . . . Ramming 391 | . . 2 35 3 26 . 45 25 . . . . . . . . . . . . . . . . . . . . . . . . . . . . . . . 255 Kinetic 21061 | . 16 . 113 348 1477 32 1569 298 206 . . . . 151 . . . . . . . . . . . . . . . . . . . . . . . . 861 15990 Thermal 29572 | . 372 221 1222 . . . 504 92 . 1176 335 387 . 760 148 639 834 301 589 714 . 1030 4122 1025 1669 1342 925 2122 1459 1859 . 1121 1776 . . 1501 . . 454 873 Explosive 9025 | . 1036 . 423 . 163 . 879 1198 . 40 197 . . . . 564 151 . . 615 . . . 633 . . . 1216 . . . . . . . . . 1475 . 435 Electromagnetic 4500 | . . . . . . . . . . . . 282 . 888 1278 208 358 . . . . 793 . . . . . 249 . . . . . . . . . . . 444 Impact 483 | . . . 187 . . . . 296 . . . . . . . . . . . . . . . . . . . . . . . . . . . . . . . . Slashing . | . . . . . . . . . . . . . . . . . . . . . . . . . . . . . . . . . . . . . . . . . Piercing . | . . . . . . . . . . . . . . . . . . . . . . . . . . . . . . . . . . . . . . . . . Phasic 528 | . . . . . . . . . . . . . . 528 . . . . . . . . . . . . . . . . . . . . . . . . . . Highest Corruption 50 | . 3 3 2 2 6 6 . 2 2 5 5 5 5 . . . 1 1 1 . . . 3 1 . 6 8 8 8 8 8 8 . . . . 8 46 4 50 Average Corruption 9 | . 2 3 2 2 3 6 . 1 1 5 5 5 5 . . . 1 1 1 . . . 1 1 . 3 2 2 4 8 8 8 . . . . 1 14 3 30 Corruption Purged 21 | . . . . . . . . . 2 . . . . . . . 1 . 1 . . . 3 2 . 6 . 6 . . . . . . . . . . . . Corruption Blocked 160 | . . . . . . . . . . . . . . . . . . . . . . . . . . . . . . . . . . . . . 40 60 . 60 Effects 696 | . 15 30 4 7 81 6 . . 1 12 34 45 2 . . . 1 3 2 . . . 9 4 . 4 . 12 52 41 24 42 . . . . 3 17 12 233 Message Errors 176 | . 3 5 1 4 23 2 . . 1 3 7 9 . . . . . 1 . . . . 1 1 . 1 . 2 12 12 5 9 . . . . 1 1 6 66 Matter Fused 152 | . 4 3 1 1 18 1 . . . 2 13 17 1 . . . 1 . 1 . . . 2 1 . 2 . 5 10 8 6 5 . . . . 1 6 4 39 Heat Flow Errors 72 | . 2 1 1 1 8 1 . . . 2 4 4 1 . . . . . . . . . 2 . . 1 . 2 6 4 3 4 . . . . . 3 . 22 Energy Discharges 90 | . 3 5 1 . 13 . . . . 2 3 4 . . . . . 1 1 . . . . 1 . . . . 8 7 3 9 . . . . . 4 1 24 Parts Rejected 4 | . . . . . . . . . . . . . . . . . . . . . . . . . . . . . . . . 1 . . . . . . . 3 Parts Fused 9 | . . 1 . . . . . . . . . . . . . . . . . . . . . . . . . . 2 1 . . . . . . . . 1 4 Data Loss (minor) 84 | . 2 9 . . 6 1 . . . 2 4 6 . . . . . 1 . . . . 3 . . . . 2 7 2 3 11 . . . . 1 . . 24 Data Loss (major) 30 | . . 3 . . 9 1 . . . . . 3 . . . . . . . . . . . . . . . . 2 3 3 1 . . . . . . . 5 Misfires 23 | . 1 3 . . 2 . . . . 1 2 1 . . . . . . . . . . . 1 . . . . 3 2 1 . . . . . . . . 6 Alerts 10 | . . . . 1 2 . . . . . 1 1 . . . . . . . . . . . . . . . . 1 . . 1 . . . . . . . 3 Misdirections 1 | . . . . . . . . . . . . . . . . . . . . . . . . . . . . . . . . . . . . . . 1 . . Weapon Failures 45 | . . . . . . . . . . . . . . . . . . . . . . . 1 . . . . 1 1 2 . 1 . . . . . 2 . 37 Overload Shots 7 | . . . . . . . . . . 2 4 . . . . . . . . . . . . . 1 . . . . . . . . . . . . . . . Effects 2 | . . . . . . . . . . 1 1 . . . . . . . . . . . . . . . . . . . . . . . . . . . . . Energy Bleed 1 | . . . . . . . . . . 1 . . . . . . . . . . . . . . . . . . . . . . . . . . . . . . Short Circuit 1 | . . . . . . . . . . . 1 . . . . . . . . . . . . . . . . . . . . . . . . . . . . . Overflow Damage 1917 | . 7 . 59 . 3 . 133 197 . 22 26 16 . 32 28 157 45 . 19 98 . 46 174 . 17 35 . 132 44 130 . 29 26 . . 44 . 183 51 164 Projectiles 1054 | . . . 2 . . . . 16 . 22 26 3 . 25 . 104 45 . 19 98 . 45 174 . 17 35 . 44 44 130 . 29 26 . . 44 . . 51 55 Explosions 639 | . 7 . 1 . 3 . 131 47 . . . 13 . 7 28 53 . . . . . 1 . . . . . 88 . . . . . . . . . 183 . 77 Melee 224 | . . . 56 . . . 2 134 . . . . . . . . . . . . . . . . . . . . . . . . . . . . . . . 32 Knockbacks 22 | . . . 1 . . . . 3 . . . . . . . . . . . . . . . . . . . . . . . . . . . . . . . 18 Impact 3 | . . . 1 . . . . 2 . . . . . . . . . . . . . . . . . . . . . . . . . . . . . . . . Kinetic 17 | . . . . . . . . . . . . . . . . . . . . . . . . . . . . . . . . . . . . . . . . 17 Secondary 2 | . . . . . . . . 1 . . . . . . . . . . . . . . . . . . . . . . . . . . . . . . . 1 Self-Inflicted Damage 1186 | . 18 . 16 . . . 21 40 . . . 122 . 17 124 158 58 . . 35 . 55 . 136 . . . 356 . . . . . . . . . . . 30 Shots 52 | . 1 . 1 . . . 1 1 . . . 5 . 1 11 2 5 . . 2 . 7 . 5 . . . 8 . . . . . . . . . . . 2 Rammed 23 | . . . 6 1 8 . . . . . . . . . . . . . . . . . . . . . . . . . . . . . . . . . . 8 Targets Rammed 36 | . . 1 7 1 8 . 2 5 . . . . . . . . . . . . . . . . . . . . . . . . . . . . . . . 12 Kicked 7 | . . . . . . . 2 5 . . . . . . . . . . . . . . . . . . . . . . . . . . . . . . . . Crushed 6 | . . 1 1 . . . . . . . . . . . . . . . . . . . . . . . . . . . . . . . . . . . . 4 Highest Temperature 435 | . 288 259 435 143 312 126 79 63 . 338 277 265 110 243 129 . 92 21 72 36 . 292 322 153 185 194 229 304 253 199 179 258 . . . 301 150 259 331 427 Average Temperature 96 | . 67 82 121 84 70 43 19 16 . 104 90 69 73 60 38 . 23 14 33 18 . 183 93 52 82 71 97 90 111 78 89 121 . . . 138 58 102 108 125 Received Heat Transfer 5216 | . 90 105 411 93 60 . 369 187 . 234 24 45 . 290 180 . 198 12 45 26 . 179 432 24 180 81 72 407 . 141 . 87 42 . . 45 . . 54 1103 Effects 30 | . 2 . 7 . 3 . . . . 4 . . . 1 . . . . . . . . . . . . . . . . . . . . . 2 . . . 11 Shutdowns 3 | . . . 1 . . . . . . 1 . . . . . . . . . . . . . . . . . . . . . . . . . . . . . 1 Energy Bleed 9 | . 1 . 2 . 2 . . . . . . . . 1 . . . . . . . . . . . . . . . . . . . . . . . . . 3 Interference 12 | . 1 . 2 . . . . . . 3 . . . . . . . . . . . . . . . . . . . . . . . . . 2 . . . 4 Matter Decay 2 | . . . 1 . . . . . . . . . . . . . . . . . . . . . . . . . . . . . . . . . . . . 1 Short Circuit 1 | . . . . . 1 . . . . . . . . . . . . . . . . . . . . . . . . . . . . . . . . . . . Damage (minor) 3 | . . . 1 . . . . . . . . . . . . . . . . . . . . . . . . . . . . . . . . . . . . 2 Siege Activations 8 | . . . . . . . . . . . . . . . . . . . . . . . . . . . . . . . . . . . . . . . 2 6 Total Turns 429 | . . . . . . . . . . . . . . . . . . . . . . . . . . . . . . . . . . . . . . . 66 363 Longest Duration 237 | . . . . . . . . . . . . . . . . . . . . . . . . . . . . . . . . . . . . . . . 43 237 Robots Corrupted 16 | . . . . . . . . . . . . 1 . 3 6 . . . . . . 3 . . . . . 1 . . . . . . . . . . . 2 Combat Hostiles 15 | . . . . . . . . . . . . 1 . 3 6 . . . . . . 2 . . . . . 1 . . . . . . . . . . . 2 Parts Fried 37 | . . . . . . . . 4 . . . 2 . 3 13 2 . . . . . 2 . 1 1 . . 2 1 . . . . . . . . . 1 5 Impact Corruptions 13 | . . . 2 . . . 1 6 . . . . . . . . . . . . . . . . . . . . . . . . . . . . . . . 4 Robots Melted 17 | . 1 . . . . . . . . 1 . . . . . . 1 . . 1 . . 3 2 2 . . . . 1 . . . . . 4 . . 1 . Combat Hostiles 15 | . 1 . . . . . . . . 1 . . . . . . 1 . . 1 . . 3 2 2 . . . . 1 . . . . . 3 . . . . Parts Melted 51 | . 2 . 4 . . . . . . 6 4 . . 1 . . . . . 1 . 1 6 5 3 1 . 1 2 3 . 2 1 . . 7 . . 1 . Heat Transferred 26059 | . 1036 481 2442 . . . 400 148 . 1850 499 697 . 865 50 350 750 250 336 424 . 685 3597 1147 1961 1036 820 965 787 1025 . 650 950 . . 1221 . . 370 267 Parts Sabotaged . | . . . . . . . . . . . . . . . . . . . . . . . . . . . . . . . . . . . . . . . . . Parts Stolen 10 | . . . . . . . . . . . 1 4 . . . . . . . 5 . . . . . . . . . . . . . . . . . . . . Parts Stripped . | . . . . . . . . . . . . . . . . . . . . . . . . . . . . . . . . . . . . . . . . . Power Chain Reactions 13 | . . . . . . . . . . . . 2 . 3 3 . . . . . . . . . . . . 4 . . . . . . . . . . . 1 Missiles Intercepted 49 | . . . . . . . . . . . . . . . . . . . . . . . . . . . . . . . . . . . . . . . . 49 Alert | -11 -10 -10 -9 -9 -9 -8 -8 -7 -7 -7 -7 -7 -7 -7 -6 -6 -6 -6 -6 -6 -6 -5 -5 -5 -5 -5 -5 -4 -4 -4 -4 -3 -3 -3 -3 -2 -2 -2 -1 -1 ------- Run | Jun Mat Min Mat Min Exi Min Mat Fac Was Fac Low Low Zio Dee Pro Fac Gar Fac Low Low Dat Pro Fac Ext Cet Arc Hub Fac Upp Upp Zhi Pro Res Arm Lab Res Tes Sec Acc Com Peak Influence 838 | . 406 186 330 266 . 45 559 643 180 232 . . . . . 222 721 463 . . . . 330 549 704 421 560 471 . . . . 127 20 . 258 200 636 667 838 Initial 381 | . . 116 1 111 . . 17 246 151 . . . . . . . 142 378 . . . . 100 142 231 201 37 210 . . . . 27 20 . . 64 53 381 366 Average 258 | . 173 46 200 183 . 25 260 414 94 76 . . . . . 84 524 368 . . . . 203 330 474 301 293 254 . . . . 58 20 . 97 80 353 465 571 Maximum Alert Level 4 | . 2 . 1 1 . . 2 2 . 1 . . . . . 1 3 2 . . . . 1 2 3 2 2 2 . . . . . . . 1 1 2 2 4 Low Security (%) 42 | 100 60 100 47 37 . 100 36 . 100 93 . . . . . 78 3 . . . . . 51 26 . 2 14 26 . . . . 100 100 . 74 88 42 . . Level 1 28 | . 34 . 52 62 . . 40 29 . 6 . . . . . 21 16 74 . . . . 48 35 17 66 64 64 . . . . . . . 25 11 1 20 7 Level 2 21 | . 4 . . . . . 22 70 . . . . . . . . 73 25 . . . . . 38 67 31 20 9 . . . . . . . . . 56 79 38 Level 3 3 | . . . . . . . . . . . . . . . . . 6 . . . . . . . 14 . . . . . . . . . . . . . . 18 Level 4 5 | . . . . . . . . . . . . . . . . . . . . . . . . . . . . . . . . . . . . . . . . 35 Level 5 . | . . . . . . . . . . . . . . . . . . . . . . . . . . . . . . . . . . . . . . . . . High Security . | . . . . . . . . . . . . . . . . . . . . . . . . . . . . . . . . . . . . . . . . . Max Security . | . . . . . . . . . . . . . . . . . . . . . . . . . . . . . . . . . . . . . . . . . Squads Dispatched 66 | . 4 . 5 . . . 6 4 . 7 . . . . . 1 . 2 . 1 . . 4 . . . 2 4 . . . . 7 . . 2 3 . 3 11 Investigation 15 | . 3 . 3 . . . . 1 . 3 . . . . . . . . . . . . . . . . 2 . . . . . 3 . . . . . . . Extermination 22 | . . . . . . . . 1 . 3 . . . . . 1 . 1 . . . . 2 . . . . 2 . . . . . . . 1 2 . 2 7 Reinforcement 21 | . 1 . 2 . . . 2 1 . 1 . . . . . . . 1 . . . . 2 . . . . 1 . . . . 4 . . 1 1 . 1 3 Assault 5 | . . . . . . . 1 1 . . . . . . . . . . . 1 . . . . . . . 1 . . . . . . . . . . . 1 Garrison 3 | . . . . . . . 3 . . . . . . . . . . . . . . . . . . . . . . . . . . . . . . . . . Intercept . | . . . . . . . . . . . . . . . . . . . . . . . . . . . . . . . . . . . . . . . . . Searches Triggered . | . . . . . . . . . . . . . . . . . . . . . . . . . . . . . . . . . . . . . . . . . Data Miner Redirects 1 | . . . . . . . . . . . . . . . . . . . . . . . . . . . . . . . . . . . . . . . . 1 Construction Impeded 1 | . . . . . . . . 1 . . . . . . . . . . . . . . . . . . . . . . . . . . . . . . . . Haulers Reinforced 2 | . . . . . . . . . . . . . . . . . . . . . . . 1 . . . . . . . . . 1 . . . . . . . Active Scanning Responses . | . . . . . . . . . . . . . . . . . . . . . . . . . . . . . . . . . . . . . . . . . Cargo Convoy Interrupts 1 | . . . . . . . . . . . . . . . . 1 . . . . . . . . . . . . . . . . . . . . . . . . Stealth | -11 -10 -10 -9 -9 -9 -8 -8 -7 -7 -7 -7 -7 -7 -7 -6 -6 -6 -6 -6 -6 -6 -5 -5 -5 -5 -5 -5 -4 -4 -4 -4 -3 -3 -3 -3 -2 -2 -2 -1 -1 --------- Run | Jun Mat Min Mat Min Exi Min Mat Fac Was Fac Low Low Zio Dee Pro Fac Gar Fac Low Low Dat Pro Fac Ext Cet Arc Hub Fac Upp Upp Zhi Pro Res Arm Lab Res Tes Sec Acc Com Distress Signals 29 | . 1 . 1 . . . 4 1 . 1 . . . . . 1 . 1 . . . . 2 1 2 . 1 . . . . . 1 . . . . 1 . 11 Communications Jammed 240 | . . . . . . . . 4 . . . . . . . 1 . . . 4 . . . 158 . . 26 2 . . . . 14 . . . . . 22 9 Distress Signals 230 | . . . . . . . . 4 . . . . . . . 1 . . . 4 . . . 158 . . 16 2 . . . . 14 . . . . . 22 9 Times Spotted 592 | . 25 5 42 5 20 1 33 20 5 20 5 7 1 18 17 10 15 6 4 13 . 15 34 19 17 12 18 31 18 10 . 8 17 . . 17 12 12 21 59 Peak Tracking Total 20 | . 6 3 6 3 9 1 7 5 4 4 1 4 1 5 4 2 7 3 1 6 . 7 5 5 5 1 5 5 3 4 . 2 6 . . 4 2 6 3 20 Tactical Retreats 36 | . 3 . 2 . 5 . 2 . . . . . . 2 1 . 3 . . 3 . . 2 1 . . . 1 . . . . . . . 1 1 4 . 5 Traps | -11 -10 -10 -9 -9 -9 -8 -8 -7 -7 -7 -7 -7 -7 -7 -6 -6 -6 -6 -6 -6 -6 -5 -5 -5 -5 -5 -5 -4 -4 -4 -4 -3 -3 -3 -3 -2 -2 -2 -1 -1 ------- Run | Jun Mat Min Mat Min Exi Min Mat Fac Was Fac Low Low Zio Dee Pro Fac Gar Fac Low Low Dat Pro Fac Ext Cet Arc Hub Fac Upp Upp Zhi Pro Res Arm Lab Res Tes Sec Acc Com Traps Triggered 21 | . 3 . 1 . . . . 1 . . . . . . . . 5 . . . . . 3 5 . . . 1 . . . . . . . . 1 . 1 . Indirectly 1 | . . . . . . . . . . . . . . . . . 1 . . . . . . . . . . . . . . . . . . . . . . . Trap Hack Attempts . | . . . . . . . . . . . . . . . . . . . . . . . . . . . . . . . . . . . . . . . . . Triggered . | . . . . . . . . . . . . . . . . . . . . . . . . . . . . . . . . . . . . . . . . . Disarmed . | . . . . . . . . . . . . . . . . . . . . . . . . . . . . . . . . . . . . . . . . . Reprogrammed . | . . . . . . . . . . . . . . . . . . . . . . . . . . . . . . . . . . . . . . . . . Reused 5 | . . . . . . . . . . . . . . 5 . . . . . . . . . . . . . . . . . . . . . . . . . . Traps Extracted . | . . . . . . . . . . . . . . . . . . . . . . . . . . . . . . . . . . . . . . . . . Installed 6 | . . . . . . . . . . . . . . 6 . . . . . . . . . . . . . . . . . . . . . . . . . . Triggered 7 | . . . . . . . . . . . . . . . . 2 . . . . . . . . . . . . 3 2 . . . . . . . . . . Most Traps Carried 6 | . . . . . . . . . . . 6 6 6 6 . . . . . . . . . . . . . . . . . . . . . . . . . . Exploded 3 | . . . . . 3 . . . . . . . . . . . . . . . . . . . . . . . . . . . . . . . . . . . Machines | -11 -10 -10 -9 -9 -9 -8 -8 -7 -7 -7 -7 -7 -7 -7 -6 -6 -6 -6 -6 -6 -6 -5 -5 -5 -5 -5 -5 -4 -4 -4 -4 -3 -3 -3 -3 -2 -2 -2 -1 -1 ---------- Run | Jun Mat Min Mat Min Exi Min Mat Fac Was Fac Low Low Zio Dee Pro Fac Gar Fac Low Low Dat Pro Fac Ext Cet Arc Hub Fac Upp Upp Zhi Pro Res Arm Lab Res Tes Sec Acc Com Machines Disabled 75 | . 2 . 5 . 6 . 7 . . . . . . 1 . 6 2 1 . . . . 1 1 1 3 1 14 5 . . 1 1 . 5 . 5 4 . 3 Max in Single Turn 6 | . 1 . 1 . 1 . 3 . . . . . . 1 . 4 1 1 . . . . 1 . 1 1 1 6 1 . . 1 1 . 1 . 1 1 . 1 Garrison Access 4 | . . . . . . . . 1 . . . . . . . . . . . . . . 1 . . . . 1 . . . . . . . . 1 . . . Garrison Relay 1 | . . . . . . . . . . . . . . . . . 1 . . . . . . . . . . . . . . . . . . . . . . . Network Hub 1 | . . . . . . . . . . . . . . . . . . . . . . . . . . . 1 . . . . . . . . . . . . . Machines Repaired 1 | . . . . . . . . . . . . . . . . . . . . . . . . . . . 1 . . . . . . . . . . . . . Machines Sabotaged . | . . . . . . . . . . . . . . . . . . . . . . . . . . . . . . . . . . . . . . . . . Overloaded Fab Kills . | . . . . . . . . . . . . . . . . . . . . . . . . . . . . . . . . . . . . . . . . . Hacking | -11 -10 -10 -9 -9 -9 -8 -8 -7 -7 -7 -7 -7 -7 -7 -6 -6 -6 -6 -6 -6 -6 -5 -5 -5 -5 -5 -5 -4 -4 -4 -4 -3 -3 -3 -3 -2 -2 -2 -1 -1 --------- Run | Jun Mat Min Mat Min Exi Min Mat Fac Was Fac Low Low Zio Dee Pro Fac Gar Fac Low Low Dat Pro Fac Ext Cet Arc Hub Fac Upp Upp Zhi Pro Res Arm Lab Res Tes Sec Acc Com Machines Accessed 70 | . 3 2 9 . 2 . 2 1 . 8 . . . . 1 6 . 1 . 1 4 . 3 . 1 . 2 1 1 1 4 1 . . . 2 9 . 2 3 Terminals 35 | . 1 . 4 . . . 2 . . 6 . . . . 1 3 . . . . . . . . 1 . 2 . . 1 . 1 . . . 2 7 . 1 3 Fabricators 7 | . . . . . . . . . . 2 . . . . . 2 . 1 . . . . 1 . . . . . . . . . . . . . . . 1 . Repair Stations 2 | . . . 1 . . . . . . . . . . . . . . . . . . . 1 . . . . . . . . . . . . . . . . . Recycling Units 4 | . 2 . 2 . . . . . . . . . . . . . . . . . . . . . . . . . . . . . . . . . . . . . Scanalyzers 3 | . . . 2 . . . . . . . . . . . . . . . . . . . . . . . . . . . . . . . . . 1 . . . Garrison Access 5 | . . . . . . . . 1 . . . . . . . 1 . . . . . . 1 . . . . 1 . . . . . . . . 1 . . . Total Hacks 207 | . 6 2 25 . 2 . 8 3 . 26 . . . . 2 15 . 3 . 1 30 . 7 . 1 . 3 1 1 2 17 4 . . . 6 23 . 11 8 Successful 146 | . 5 2 13 . 2 . 5 1 . 14 . . . . 2 8 . 2 . 1 30 . 6 . . . 2 1 1 2 17 4 . . . 4 16 . 5 3 Failed 61 | . 1 . 12 . . . 3 2 . 12 . . . . . 7 . 1 . . . . 1 . 1 . 1 . . . . . . . . 2 7 . 6 5 Catastrophic 6 | . . . . . . . . . . 1 . . . . . . . . . . . . . . 1 . . . . . . . . . . . . . 3 1 Database Lockouts . | . . . . . . . . . . . . . . . . . . . . . . . . . . . . . . . . . . . . . . . . . Manual 99 | . 6 . 14 . 1 . 7 1 . 12 . . 4 . . 10 . 1 . . . . 2 . 1 . 3 . . . . . . . . 4 15 . 11 7 Terminals 105 | . 4 . 11 . . . 8 . . 18 . . . . 2 9 . . . . . . . . 1 . 3 . . 2 . 4 . . . 6 20 . 9 8 Fabricators 21 | . . . . . . . . . . 8 . . . . . 5 . 3 . . . . 3 . . . . . . . . . . . . . . . 2 . Repair Stations 5 | . . . 2 . . . . . . . . . . . . . . . . . . . 3 . . . . . . . . . . . . . . . . . Recycling Units 4 | . 2 . 2 . . . . . . . . . . . . . . . . . . . . . . . . . . . . . . . . . . . . . Scanalyzers 12 | . . . 10 . . . . . . . . . . . . . . . . . . . . . . . . . . . . . . . . . 2 . . . Garrison Access 7 | . . . . . . . . 3 . . . . . . . 1 . . . . . . 1 . . . . 1 . . . . . . . . 1 . . . Terminal Hacks 86 | . 2 2 2 . 2 . 2 . . 6 . . . . 2 2 . . . 1 30 . . . . . . . 1 2 17 4 . . . 2 6 . 1 2 Record 25 | . . . . . 1 . . . . . . . . . 2 . . . . . 11 . . . . . . . . 2 5 4 . . . . . . . . Part Schematic 15 | . . . . . . . . . . 1 . . . . . . . . . . 10 . . . . . . . . . 4 . . . . . . . . . Robot Schematic 6 | . . . . . . . . . . . . . . . . . . . . . 6 . . . . . . . . . . . . . . . . . . . Robot Analysis 5 | . 1 . . . . . . . . . . . . . . . . . . . . . . . . . . . . . 4 . . . . . . . . . Prototype ID Bank 7 | . . . . . . . . . . . . . . . . . . . . . 3 . . . . . . . . . 4 . . . . . . . . . Open Door 5 | . . 2 . . . . . . . . . . . . . . . . . 1 . . . . . . . . 1 . . . . . . . 1 . . . Branch Access Points 2 | . . . . . . . . . . 1 . . . . . 1 . . . . . . . . . . . . . . . . . . . . . . . . Terminal Index 5 | . . . . . . . 1 . . . . . . . . 1 . . . . . . . . . . . . . . . . . . . 1 1 . 1 . Alert Level 3 | . . . 1 . . . . . . 2 . . . . . . . . . . . . . . . . . . . . . . . . . . . . . . Unreport Threat 4 | . . . 1 . . . . . . 1 . . . . . . . . . . . . . . . . . . . . . . . . . 1 . . . 1 Locate Traps 3 | . 1 . . . . . 1 . . 1 . . . . . . . . . . . . . . . . . . . . . . . . . . . . . . Patrol Status 1 | . . . . . . . . . . . . . . . . . . . . . . . . . . . . . . . . . . . . . 1 . . . Hauler Manifests 1 | . . . . . . . . . . . . . . . . . . . . . . . . . . . . . . . . . . . . . 1 . . . Registered Components 1 | . . . . . . . . . . . . . . . . . . . . . . . . . . . . . . . . . . . . . 1 . . . Zone Layout 1 | . . . . . . . . . . . . . . . . . . . . . . . . . . . . . . . . . . . . . 1 . . . EX-Prototype ID Bank 1 | . . . . . 1 . . . . . . . . . . . . . . . . . . . . . . . . . . . . . . . . . . . Disengage Seal 1 | . . . . . . . . . . . . . . . . . . . . . . . . . . . . . . . . . . . . . . . . 1 Fabricator Hacks 7 | . . . . . . . . . . 4 . . . . . 1 . 1 . . . . 1 . . . . . . . . . . . . . . . . . Network Status 3 | . . . . . . . . . . 1 . . . . . 1 . . . . . . 1 . . . . . . . . . . . . . . . . . Load Schematic 2 | . . . . . . . . . . 2 . . . . . . . . . . . . . . . . . . . . . . . . . . . . . . Build 2 | . . . . . . . . . . 1 . . . . . . . 1 . . . . . . . . . . . . . . . . . . . . . . Repair Station Hacks 4 | . . . 2 . . . . . . . . . . . . . . . . . . . 2 . . . . . . . . . . . . . . . . . Scan Component 2 | . . . 1 . . . . . . . . . . . . . . . . . . . 1 . . . . . . . . . . . . . . . . . Repair 2 | . . . 1 . . . . . . . . . . . . . . . . . . . 1 . . . . . . . . . . . . . . . . . Recycling Unit Hacks . | . . . . . . . . . . . . . . . . . . . . . . . . . . . . . . . . . . . . . . . . . Scanalyzer 8 | . . . 7 . . . . . . . . . . . . . . . . . . . . . . . . . . . . . . . . . 1 . . . Insert Component 4 | . . . 3 . . . . . . . . . . . . . . . . . . . . . . . . . . . . . . . . . 1 . . . Analyze 4 | . . . 4 . . . . . . . . . . . . . . . . . . . . . . . . . . . . . . . . . . . . . Garrison Access Hacks 4 | . . . . . . . . . . . . . . . . 1 . . . . . . 1 . . . . 1 . . . . . . . . 1 . . . Unlock Access 1 | . . . . . . . . . . . . . . . . 1 . . . . . . . . . . . . . . . . . . . . . . . . Seal Access 3 | . . . . . . . . . . . . . . . . . . . . . . . 1 . . . . 1 . . . . . . . . 1 . . . Unauthorized Hacks 37 | . 3 . 2 . . . 3 1 . 4 . . . . . 4 . 1 . . . . 2 . . . 2 . . . . . . . . 2 8 . 4 1 Terminals 26 | . 1 . . . . . 3 . . 4 . . . . . 2 . . . . . . . . . . 2 . . . . . . . . 2 8 . 3 1 Track 3 | . . . . . . . . . . . . . . . . . . . . . . . . . . . . . . . . . . . . 1 1 . 1 . Botnet 16 | . 1 . . . . . 2 . . 3 . . . . . 1 . . . . . . . . . . . . . . . . . . . 1 6 . 1 1 Operators 5 | . . . . . . . 1 . . 1 . . . . . 1 . . . . . . . . . . . . . . . . . . . . 1 . 1 . Sabotage 2 | . . . . . . . . . . . . . . . . . . . . . . . . . . . 2 . . . . . . . . . . . . . Fabricators 6 | . . . . . . . . . . . . . . . . 2 . 1 . . . . 2 . . . . . . . . . . . . . . . 1 . Report 2 | . . . . . . . . . . . . . . . . 1 . . . . . . 1 . . . . . . . . . . . . . . . . . Liberate 4 | . . . . . . . . . . . . . . . . 1 . 1 . . . . 1 . . . . . . . . . . . . . . . 1 . Repair Stations . | . . . . . . . . . . . . . . . . . . . . . . . . . . . . . . . . . . . . . . . . . Recycling Units 4 | . 2 . 2 . . . . . . . . . . . . . . . . . . . . . . . . . . . . . . . . . . . . . Tunnel 4 | . 2 . 2 . . . . . . . . . . . . . . . . . . . . . . . . . . . . . . . . . . . . . Scanalyzers . | . . . . . . . . . . . . . . . . . . . . . . . . . . . . . . . . . . . . . . . . . Garrison Access 1 | . . . . . . . . 1 . . . . . . . . . . . . . . . . . . . . . . . . . . . . . . . . Jam 1 | . . . . . . . . 1 . . . . . . . . . . . . . . . . . . . . . . . . . . . . . . . . Data Cores Recovered 3 | . . . . . . . . . . . . . . . . 1 . . . . . . . . . . . 1 . . . . 1 . . . . . . . Used . | . . . . . . . . . . . . . . . . . . . . . . . . . . . . . . . . . . . . . . . . . Hacking Detections 37 | . 2 . 5 . . . 2 1 . 8 . . . . 1 5 . 1 . . . . 1 . . . 1 . . . . . . . . 1 5 . 2 2 Full Trace Events 4 | . . . 1 . . . . . . 3 . . . . . . . . . . . . . . . . . . . . . . . . . . . . . . Feedback Events . | . . . . . . . . . . . . . . . . . . . . . . . . . . . . . . . . . . . . . . . . . Feedback Blocked . | . . . . . . . . . . . . . . . . . . . . . . . . . . . . . . . . . . . . . . . . . Robot Schematics Acquired 10 | . . . . . . . . . . . . . 3 . . . . . . . 6 . . . . . . . . . . . . . . . . 1 . . Robots Built . | . . . . . . . . . . . . . . . . . . . . . . . . . . . . . . . . . . . . . . . . . Authchips . | . . . . . . . . . . . . . . . . . . . . . . . . . . . . . . . . . . . . . . . . . Time . | . . . . . . . . . . . . . . . . . . . . . . . . . . . . . . . . . . . . . . . . . Total Robot Build Rating . | . . . . . . . . . . . . . . . . . . . . . . . . . . . . . . . . . . . . . . . . . Part Schematics Acquired 40 | . . . . . . . . . . 1 . . 15 . . . . . . . 10 . . . . . . . . . 4 . . . . . . 10 . . Parts Built 2 | . . . . . . . . . . 1 . . . . . . . 1 . . . . . . . . . . . . . . . . . . . . . . Authchips . | . . . . . . . . . . . . . . . . . . . . . . . . . . . . . . . . . . . . . . . . . Time 153 | . . . . . . . . . . 25 . . . . . . . 128 . . . . . . . . . . . . . . . . . . . . . . Total Part Build Rating 9 | . . . . . . . . . . 1 . . . . . . . 8 . . . . . . . . . . . . . . . . . . . . . . Parts Repaired 1 | . . . 1 . . . . . . . . . . . . . . . . . . . . . . . . . . . . . . . . . . . . . Time 206 | . . . 136 . . . . . . . . . . . . . . . . . . . 70 . . . . . . . . . . . . . . . . . Parts Recycled . | . . . . . . . . . . . . . . . . . . . . . . . . . . . . . . . . . . . . . . . . . Recycled Matter . | . . . . . . . . . . . . . . . . . . . . . . . . . . . . . . . . . . . . . . . . . Retrieved Matter . | . . . . . . . . . . . . . . . . . . . . . . . . . . . . . . . . . . . . . . . . . Retrieved Components . | . . . . . . . . . . . . . . . . . . . . . . . . . . . . . . . . . . . . . . . . . Parts Scanalyzed 1 | . . . 1 . . . . . . . . . . . . . . . . . . . . . . . . . . . . . . . . . . . . . Part Schematics Acquired . | . . . . . . . . . . . . . . . . . . . . . . . . . . . . . . . . . . . . . . . . . Parts Damaged . | . . . . . . . . . . . . . . . . . . . . . . . . . . . . . . . . . . . . . . . . . Bothacking | -11 -10 -10 -9 -9 -9 -8 -8 -7 -7 -7 -7 -7 -7 -7 -6 -6 -6 -6 -6 -6 -6 -5 -5 -5 -5 -5 -5 -4 -4 -4 -4 -3 -3 -3 -3 -2 -2 -2 -1 -1 ------------ Run | Jun Mat Min Mat Min Exi Min Mat Fac Was Fac Low Low Zio Dee Pro Fac Gar Fac Low Low Dat Pro Fac Ext Cet Arc Hub Fac Upp Upp Zhi Pro Res Arm Lab Res Tes Sec Acc Com Used RIF Installer 1 | . . . . . . . . . . . . . . . . . 1 . . . . . . . . . . . . . . . . . . . . . . . Robots Hacked 29 | . . . . . . . . . . . . . . . . . . . . . . . . . . . . 4 . . . . . . . 1 12 5 5 2 Non-combat 3 | . . . . . . . . . . . . . . . . . . . . . . . . . . . . . . . . . . . . 1 1 1 . . Combat 26 | . . . . . . . . . . . . . . . . . . . . . . . . . . . . 4 . . . . . . . . 11 4 5 2 Robot Hacks Applied 31 | . . . . . . . . . . . . . . . . . . . . . . . . . . . . 4 . . . . . . . 2 12 6 5 2 parse_system 1 | . . . . . . . . . . . . . . . . . . . . . . . . . . . . . . . . . . . . 1 . . . . drop_inventory 2 | . . . . . . . . . . . . . . . . . . . . . . . . . . . . . . . . . . . . . 1 1 . . block_reporting 1 | . . . . . . . . . . . . . . . . . . . . . . . . . . . . . . . . . . . . 1 . . . . disable_scanner 9 | . . . . . . . . . . . . . . . . . . . . . . . . . . . . . . . . . . . . . 5 4 . . report_analyses 1 | . . . . . . . . . . . . . . . . . . . . . . . . . . . . . . . . . . . . . . 1 . . formatsys_high 17 | . . . . . . . . . . . . . . . . . . . . . . . . . . . . 4 . . . . . . . . 6 . 5 2 Relay Couplers Released 9 | . . . . . . . . . . . . . . . . . 9 . . . . . . . . . . . . . . . . . . . . . . . Machine Destruction 5 | . . . . . . . . . . . . . . . . . 5 . . . . . . . . . . . . . . . . . . . . . . . Programmers 4 | . . . . . . . . . . . . . . . . . 4 . . . . . . . . . . . . . . . . . . . . . . . Attached 8 | . . . . . . . . . . . . . . . . . . . . . . . . . . . . 2 . . 1 . . . . 1 2 1 1 . Fabnet Peak Effective % . | . . . . . . . . . . . . . . . . . . . . . . . . . . . . . . . . . . . . . . . . . Robots Rewired 13 | . . . . . . . . . . . . . . . . . 1 . . 2 . 2 . 4 . . . . 4 . . . . . . . . . . . Allies Hacked 6 | . . . . . . . . . . . . . . . . . . . . . . . . . 1 . . . . . . . . . . . 2 1 . 2 Hacks Repelled 1 | . . . . . . . . . . . . . . . . . . . . . . . . . . . . . . . . . . . . . . . . 1 Allies | -11 -10 -10 -9 -9 -9 -8 -8 -7 -7 -7 -7 -7 -7 -7 -6 -6 -6 -6 -6 -6 -6 -5 -5 -5 -5 -5 -5 -4 -4 -4 -4 -3 -3 -3 -3 -2 -2 -2 -1 -1 -------- Run | Jun Mat Min Mat Min Exi Min Mat Fac Was Fac Low Low Zio Dee Pro Fac Gar Fac Low Low Dat Pro Fac Ext Cet Arc Hub Fac Upp Upp Zhi Pro Res Arm Lab Res Tes Sec Acc Com Total Allies 85 | . . 3 . 1 . . . . 19 . . . 8 . . 3 1 . . 2 . 3 . 14 5 . . 4 4 . . . . . . . 8 1 5 4 Largest Group 19 | . . 3 3 1 . . . . 19 7 . . 8 8 . . 1 . . 2 2 2 2 9 4 4 4 2 6 4 . . . . . . 6 2 3 3 Highest-Rated Group 475 | . . 40 40 31 . . . . 475 190 . . 209 209 . . 22 . . 61 61 96 58 403 384 384 384 108 292 182 . . . . . . 416 164 246 205 Highest-Rated Ally 159 | . . 16 16 31 . . . . 35 31 . . 31 31 . . 22 . . 32 32 96 29 159 159 96 96 84 54 49 . . . . . . 82 82 82 82 Total Orders 44 | . . . . . 5 . 1 . . . . 1 . . . . . 2 . 4 . . 2 9 . 2 4 8 . . . . 1 . . 1 . 2 . 2 STAY 10 | . . . . . . . . . . . . . . . . . . . . 3 . . . 1 . 1 1 2 . . . . . . . . . 1 . 1 ROAM 1 | . . . . . 1 . . . . . . . . . . . . . . . . . . . . . . . . . . . . . . . . . . . FOLLOW 10 | . . . . . . . . . . . . . . . . . . . . 1 . . . 2 . 1 1 3 . . . . . . . . . 1 . 1 RETURN 23 | . . . . . 4 . 1 . . . . 1 . . . . . 2 . . . . 2 6 . . 2 3 . . . . 1 . . 1 . . . . Ally Attacks 872 | . . 10 28 13 46 . . 6 122 102 . 15 2 39 . . 3 5 . 17 . 23 8 86 51 3 29 32 52 13 . . . . . . 61 26 39 41 Total Damage 18881 | . . 95 356 212 178 . . 21 2645 1734 . 142 23 478 . . 135 23 . 300 . 532 132 1825 1576 134 1281 855 1696 321 . . . . . . 644 923 1415 1205 Kills 125 | . . 2 7 3 . . . . 7 12 . . 1 5 . . 1 . . 1 . 2 1 9 11 1 13 5 13 . . . . . . . 5 8 11 7 Allies Corrupted 2 | . . . . . . . . . . . . . . . . . . . . . . 1 . 1 . . . . . . . . . . . . . . . . Allies Melted . | . . . . . . . . . . . . . . . . . . . . . . . . . . . . . . . . . . . . . . . . . Turrets Deployed 1 | . . . . . . . . . . . . 1 . . . . . . . . . . . . . . . . . . . . . . . . . . . . Intel | -11 -10 -10 -9 -9 -9 -8 -8 -7 -7 -7 -7 -7 -7 -7 -6 -6 -6 -6 -6 -6 -6 -5 -5 -5 -5 -5 -5 -4 -4 -4 -4 -3 -3 -3 -3 -2 -2 -2 -1 -1 ------- Run | Jun Mat Min Mat Min Exi Min Mat Fac Was Fac Low Low Zio Dee Pro Fac Gar Fac Low Low Dat Pro Fac Ext Cet Arc Hub Fac Upp Upp Zhi Pro Res Arm Lab Res Tes Sec Acc Com Robot Analysis Total 5 | . 1 . . . . . . . . . . . . . . . . . . . . . . . . . . . . . 4 . . . . . . . . . Derelict Logs Recovered 16 | . . 1 . . . . . . . . 1 2 2 . 1 . . . 3 . . 1 . . . . . . 3 2 . . . . . . . . . . Drone Launches 48 | . . . . . 19 . 3 3 . . . 4 . . . . . 4 . . . . 2 5 . . 2 3 . . . . 1 . . 1 . . . 1 Drone Recoveries 44 | . . . . . 19 . 3 2 . . . 3 . . . . . 3 . . . . 2 5 . . 2 3 . . . . 1 . . 1 . . . . Exploration | -11 -10 -10 -9 -9 -9 -8 -8 -7 -7 -7 -7 -7 -7 -7 -6 -6 -6 -6 -6 -6 -6 -5 -5 -5 -5 -5 -5 -4 -4 -4 -4 -3 -3 -3 -3 -2 -2 -2 -1 -1 ------------- Run | Jun Mat Min Mat Min Exi Min Mat Fac Was Fac Low Low Zio Dee Pro Fac Gar Fac Low Low Dat Pro Fac Ext Cet Arc Hub Fac Upp Upp Zhi Pro Res Arm Lab Res Tes Sec Acc Com Turns Passed 55529 | 5 1327 1589 2893 456 3892 185 1273 860 723 1776 1555 1780 2067 5222 2171 1188 1281 550 1508 1035 163 611 1516 1071 456 820 583 1839 2453 1193 735 1179 990 2 1013 520 1136 364 1173 4376 Spaces Moved 23212 | 1 628 645 993 164 1400 91 507 360 465 1039 931 1020 1266 2554 916 520 304 203 703 450 77 252 577 432 178 151 206 518 1029 561 138 404 450 1 275 210 650 181 555 1207 Core . | . . . . . . . . . . . . . . . . . . . . . . . . . . . . . . . . . . . . . . . . . Treads 7072 | 1 628 645 993 164 1123 . . . . . . . . . . . . . . . . . . . . 65 206 261 . . . . . . 259 210 650 181 543 1143 Legs 9384 | . . . . . 277 91 507 360 . . . . . 617 916 520 304 203 703 450 77 252 577 432 178 86 . 235 1029 561 138 404 450 1 16 . . . . . Wheels 6680 | . . . . . . . . . 465 1039 931 1020 1266 1937 . . . . . . . . . . . . . 22 . . . . . . . . . . . . Hover . | . . . . . . . . . . . . . . . . . . . . . . . . . . . . . . . . . . . . . . . . . Flight . | . . . . . . . . . . . . . . . . . . . . . . . . . . . . . . . . . . . . . . . . . Fastest Speed 115 | 160 160 240 240 240 190 190 190 190 115 145 160 160 160 160 210 210 210 210 210 210 210 210 187 189 189 189 240 190 180 186 132 186 130 186 158 158 159 159 156 151 Average Speed 188 | 160 179 240 240 240 236 190 190 190 138 150 160 165 160 173 210 210 210 210 210 210 210 210 188 189 189 218 240 251 187 186 161 186 182 186 163 187 159 159 158 154 Slowest Speed 400 | 160 240 240 240 240 400 190 190 190 145 175 175 175 160 210 210 210 210 210 210 210 210 210 189 189 189 320 240 400 210 186 186 186 186 186 300 238 159 159 159 156 Overloaded Moves . | . . . . . . . . . . . . . . . . . . . . . . . . . . . . . . . . . . . . . . . . . Propulsion Burnouts . | . . . . . . . . . . . . . . . . . . . . . . . . . . . . . . . . . . . . . . . . . Robots Hopped 2 | . . . . . . . . . . . . 2 . . . . . . . . . . . . . . . . . . . . . . . . . . . . Cave-ins Triggered 1 | . . . . . . . . . . . . . . . . . . . . . . . . . . . . 1 . . . . . . . . . . . . Teleports 1 | . . . . . . . . . . . . . . . . . . . . . . . . . . . . . . . . . . 1 . . . . . . Spacefolds 5 | . . . . . . . . . . . . . . . . . . . . . . . . . . . . . . . . . . . . . . . 4 1 Microwarps 4 | . . . . . . . . . . . . . . . . . . . . . . . . . . . . . . . . . . . . . . . . 4 Exploration Rate (%) 53 | 1 94 100 67 32 94 28 56 12 95 26 89 95 87 89 87 18 37 9 77 55 69 44 16 57 67 77 31 16 91 73 60 47 17 . 95 8 67 13 17 37 Regions Visited 40 Branch Regions 26 Pre-discovered Areas 10 | . 2 . 2 . 1 . . . . . . . 1 . . . . . . . 1 . . . . . . . . . 3 . . . . . . . . . Known Exits Taken 25 | . . . . . . . . . . 1 1 1 1 1 1 1 . 1 1 . . . 1 1 1 1 1 1 1 1 1 1 1 . 1 1 1 1 1 . Unknown Exits Taken 12 | 1 1 1 1 1 1 1 1 . . . . . . . . . . . . 1 1 1 . . . . . . . . . . . 1 . . . . . . Scrap Searched 29 | . . 2 . . . 1 . . . . 3 2 3 . 5 . . . 3 3 . . . . . . . . 3 3 . 1 . . . . . . . . Spaces Dug 275 | . . . 52 . . . 48 3 . 1 15 . . 1 . 3 2 1 . 36 . . 12 . . . 1 54 6 1 . 6 . . 15 2 11 2 2 1 Terrain Destroyed 1271 | . 90 . 90 . 18 1 128 40 7 13 19 6 . 13 26 33 25 3 6 60 . 10 49 175 6 2 6 165 23 17 1 14 12 . 16 4 13 69 16 95 Melee 4 | . . . . . . . 1 3 . . . . . . . . . . . . . . . . . . . . . . . . . . . . . . . . Projectile 353 | . . . . . 16 1 . . 7 6 . . . 5 . 12 9 3 6 7 . 10 49 12 6 2 6 34 23 17 1 14 12 . 16 4 13 4 12 46 AOE 896 | . 90 . 90 . 1 . 127 37 . 7 19 6 . 8 26 21 16 . . 53 . . . 163 . . . 131 . . . . . . . . . 65 . 36 Terrain Rammed . | . . . . . . . . . . . . . . . . . . . . . . . . . . . . . . . . . . . . . . . . . Walls Destroyed . | . . . . . . . . . . . . . . . . . . . . . . . . . . . . . . . . . . . . . . . . . Machines Disabled . | . . . . . . . . . . . . . . . . . . . . . . . . . . . . . . . . . . . . . . . . . Actions | -11 -10 -10 -9 -9 -9 -8 -8 -7 -7 -7 -7 -7 -7 -7 -6 -6 -6 -6 -6 -6 -6 -5 -5 -5 -5 -5 -5 -4 -4 -4 -4 -3 -3 -3 -3 -2 -2 -2 -1 -1 --------- Run | Jun Mat Min Mat Min Exi Min Mat Fac Was Fac Low Low Zio Dee Pro Fac Gar Fac Low Low Dat Pro Fac Ext Cet Arc Hub Fac Upp Upp Zhi Pro Res Arm Lab Res Tes Sec Acc Com Total 32774 | 6 763 668 1370 192 1832 97 656 460 531 1194 979 1080 1309 3247 1135 588 922 316 722 514 79 304 899 634 244 584 261 972 1515 654 652 790 580 1 795 304 744 234 764 3183 Wait 6514 | . 64 1 207 9 243 2 36 20 15 74 25 18 18 481 165 6 498 103 8 17 . 2 164 95 . 384 17 355 354 51 502 354 75 . 378 28 29 14 128 1574 Move 23102 | . 627 644 992 163 1399 90 506 360 464 1038 930 1015 1265 2553 915 520 303 202 702 449 76 251 576 431 177 150 205 517 1028 560 137 403 449 . 274 209 649 180 546 1147 Hop 2 | . . . . . . . . . . . . 2 . . . . . . . . . . . . . . . . . . . . . . . . . . . . Pick Up 323 | . 8 10 26 . 11 . 1 3 11 14 2 7 6 29 1 10 27 . . 3 . . 13 . 10 1 3 12 26 2 2 . 15 . 26 7 9 3 4 21 Fast Attach 182 | . 4 . 12 . 19 . 7 6 4 6 . 3 3 13 . 8 2 1 1 . . 2 15 . 6 8 6 10 6 2 3 1 3 . 5 4 1 1 3 17 Attach 146 | 2 . . 9 . 10 . . 5 7 4 2 4 2 13 3 . 4 . 2 . 3 2 7 1 3 . 3 15 4 1 . . 1 . 7 6 3 3 3 17 Detach 121 | 2 . . 1 . 5 . 1 2 1 3 . 1 2 9 5 9 12 . 2 1 . . 2 . . 2 . 1 12 2 4 4 2 . 16 2 3 1 1 13 Swap 269 | . 10 4 11 . 15 2 15 13 4 5 9 7 3 21 1 7 4 3 1 3 . . 9 14 3 6 8 6 1 2 1 2 4 1 2 4 8 12 15 33 Drop 374 | 2 8 . 32 . 38 . 6 6 11 13 2 6 9 41 3 9 28 2 . 2 . 1 10 . 15 5 5 5 24 5 3 . 12 . 26 5 7 2 3 28 Fire 1494 | . 42 8 67 19 84 3 81 28 14 37 9 17 1 81 42 19 30 5 6 15 . 41 93 21 30 28 14 45 28 29 . 26 19 . 61 39 22 18 53 319 Melee 45 | . . . 6 . . . 1 12 . . . . . . . . . . . . . . . . . . . 5 . . . . . . . . 11 . 8 2 Ram . | . . . . . . . . . . . . . . . . . . . . . . . . . . . . . . . . . . . . . . . . . Kick 7 | . . . . . . . 2 5 . . . . . . . . . . . . . . . . . . . . . . . . . . . . . . . . Crush 29 | . . 1 7 1 8 . . . . . . . . . . . . . . . . . . . . . . . . . . . . . . . . . . 12 Escape Stasis 48 | . . . . . . . . . . . . . . . . . 13 . . . . . 10 25 . . . . . . . . . . . . . . . . Rewire 112 | . . . . . . . . . . . . . . . . . 1 . . 24 . 5 . 47 . . . 1 32 . . . . . . . 2 . . . Trap 6 | . . . . . . . . . . . . . . 6 . . . . . . . . . . . . . . . . . . . . . . . . . . Miscellaneous . | . . . . . . . . . . . . . . . . . . . . . . . . . . . . . . . . . . . . . . . . . Route ------- -11/Junkyard -10/Materials (discovered 4 exits: *Mat x3 / *Min) -10/Mines (discovered 2 exits: *Mat x2) -9/Materials (discovered 3 exits: *Mat x2 / [*Min]) -9/Mines -9/Exiles (discovered 2 exits: [*Min x2]) -8/Mines -8/Materials (discovered 3 exits: *Fac x2 / [*Sto]) -7/Factory -7/Waste -7/Factory (discovered 3 exits: *Fac / *Low x2) -7/Lower Caves -7/Lower Caves (discovered 2 exits: *Fac / *Zio) -7/Zion (discovered 2 exits: *Dee / [*Pro]) -7/Deep Caves -6/Proximity Caves -6/Factory (discovered 3 exits: Low x2 / Gar) -6/Garrison -6/Factory -6/Lower Caves -6/Lower Caves (discovered 2 exits: *Fac / *Dat) -6/Data Miner -5/Proximity Caves -5/Factory (discovered 8 exits: Fac x4 / Upp x2 / *Ext x2) -5/Extension (discovered 3 exits: *Fac x2 / *Cet) -5/Cetus (discovered 2 exits: *Fac / *Arc) -5/Archives (discovered 2 exits: *Fac / *Hub) -5/Hub_04(d) (discovered 2 exits: *Fac x2) -4/Factory (discovered 6 exits: Res x4 / *Upp x2) -4/Upper Caves -4/Upper Caves (discovered 2 exits: *Res / *Zhi) -4/Zhirov -3/Proximity Caves -3/Research (discovered 4 exits: Res / *Arm / Qua x2) -3/Armory -3/Lab -2/Research (discovered 2 exits: *Tes x2) -2/Testing -2/Section 7 -1/Access -1/Command (discovered 2 exits: [*Sur x2]) 0b11 Command History --------- Turn | Location | Event 6 | -11/Junkyard | Discovered new exit (range 0) 6 | -11/Junkyard | Entered Materials 312 | -10/Materials | Build established: Mutant 330 | -10/Materials | Discovered new exit (range 16) 453 | -10/Materials | Discovered new exit (range 14) 643 | -10/Materials | Discovered new exit (range 16) 792 | -10/Materials | Discovered new exit (range 5) 1333 | -10/Materials | Entered Mines 1381 | -10/Mines | Discovered new exit (range 14) 1478 | -10/Mines | Met a Derelict who couldn't figure out how to use a Trap Extractor 1725 | -10/Mines | Found a damaged Exp. Sensor Array with a note attached 1730 | -10/Mines | Found Prototype Device 1842 | -10/Mines | Assisted by bots powering up and referring to "LRC-V3" 1906 | -10/Mines | Discovered new exit (range 7) 1922 | -10/Mines | Found the Drone Emporium 1928 | -10/Mines | Learned Materials terminal intel 1933 | -10/Mines | Found Prototype Device 1934 | -10/Mines | Identified Thief Drone Bay 1935 | -10/Mines | Identified Exp. Sensor Array 2680 | -10/Mines | A weapon hastily lodged in a ceiling crevice suddenly fell to the ground 2922 | -10/Mines | Entered Materials 2922 | -9/Materials | Accompanied by 3 allies 2922 | -9/Materials | Evolved 2 slots: Utility x2 2923 | -9/Materials | Loaded intel: 12 terminal locations 3633 | -9/Materials | Discovered new exit (range 11) 4598 | -9/Materials | Discovered new exit (range 14) 5306 | -9/Materials | Repaired Broken Exp. Sensor Array 5443 | -9/Materials | Discovered new exit (range 15) 5699 | -9/Materials | Build established: Scavenger-Mutant 5815 | -9/Materials | Entered Mines 5904 | -9/Mines | Received a Mining Laser from a helpful Derelict 6178 | -9/Mines | Deemed a non-threat by the Exiles lab entrance 6178 | -9/Mines | Discovered new exit (range 5) 6271 | -9/Mines | Entered Exiles 6332 | -9/Exiles | Met 8R-AWN 6372 | -9/Exiles | Met EX-HEX 6554 | -9/Exiles | Met EX-DEC 6574 | -9/Exiles | Build established: Mutant 6595 | -9/Exiles | Learned location of Zion (-7) 6770 | -9/Exiles | Met EX-BIN 6811 | -9/Exiles | Aligned with FarCom system 6814 | -9/Exiles | Given EX-Vault access code 6869 | -9/Exiles | Opened EX-Vault 6886 | -9/Exiles | Found Supersonic Drone Bay 6892 | -9/Exiles | Discovered new exit (range 56) 6906 | -9/Exiles | Discovered new exit (range 70) 6978 | -9/Exiles | Found Superbattery 7050 | -9/Exiles | Warned to stay clear of 0b10 Research branches 7715 | -9/Exiles | Attacked by the Exiles 7755 | -9/Exiles | Core integrity fell below 50% 7851 | -9/Exiles | Found 8R-AWN's Boregun 7852 | -9/Exiles | Found 8R-AWN's Boregun 7963 | -9/Exiles | Found AS-neutralizer No. 17b 8144 | -9/Exiles | Destroyed 8R-AWN 8771 | -9/Exiles | Destroyed EX-HEX 8807 | -9/Exiles | Destroyed EX-DEC 9253 | -9/Exiles | Destroyed EX-BIN 9400 | -9/Exiles | Found Deploy-a-Sentry 9735 | -9/Exiles | Found Prototype Protection 9735 | -9/Exiles | Identified 8R-AWN's Armor/EX 10163 | -9/Exiles | Stole two prototypes: Superbattery, Deploy-a-Sentry 10163 | -9/Exiles | Entered Mines 10331 | -8/Mines | Discovered new exit (range 7) 10348 | -8/Mines | Entered Materials 10348 | -8/Materials | Evolved 2 slots: Utility x2 10833 | -8/Materials | Discovered new exit (range 7) 10919 | -8/Materials | Discovered new exit (range 13) 11331 | -8/Materials | Garrison activated, responded to threat 11510 | -8/Materials | Discovered new exit (range 4) 11548 | -8/Materials | First assault squad dispatched 11621 | -8/Materials | Entered Factory 11621 | -7/Factory | Evolved 2 slots: Power x1, Utility x1 12421 | -7/Factory | First assault squad dispatched 12481 | -7/Factory | Sucked down chute 12481 | -7/Factory | Entered Waste 12517 | -7/Waste | Spotted C-40 Crusher 12532 | -7/Waste | Spotted C-40 Crusher 12550 | -7/Waste | Spotted C-40 Crusher 12555 | -7/Waste | Spotted C-40 Crusher 12557 | -7/Waste | Crushed by Compactor (0 parts destroyed, 2 dropped) 12588 | -7/Waste | Crushed by Compactor (1 part destroyed, 2 dropped) 12640 | -7/Waste | Warlord forces began an assault 12645 | -7/Waste | Allies destroyed C-40 Crusher 12647 | -7/Waste | Allies destroyed C-40 Crusher 12649 | -7/Waste | Allies destroyed C-40 Crusher 12654 | -7/Waste | Allies destroyed C-40 Crusher 12865 | -7/Waste | Spotted C-40 Crusher 12897 | -7/Waste | Spotted C-40 Crusher 12903 | -7/Waste | Allies destroyed C-40 Crusher 12941 | -7/Waste | Discovered new exit (range 15) 12989 | -7/Waste | Build established: Scavenger-Mutant 13200 | -7/Waste | Identified exit to Factory 13204 | -7/Waste | Entered Factory 13204 | -7/Factory | Accompanied by 7 allies 13344 | -7/Factory | Identified exit to Lower Caves 13558 | -7/Factory | Discovered new exit (range 15) 13578 | -7/Factory | Identified exit to Factory 14316 | -7/Factory | Build established: Mutant 14534 | -7/Factory | Fabricated Huge Storage Unit (x1) 14865 | -7/Factory | Found Prototype Launcher 14980 | -7/Factory | Entered Lower Caves 14980 | -7/Lower Caves | Spotted ZA-G17(f) 14981 | -7/Lower Caves | Encountered a Master Thief 14981 | -7/Lower Caves | Superbattery stolen by Master Thief 14983 | -7/Lower Caves | Destroyed ZA-G17(f) 15008 | -7/Lower Caves | Identified Rocket Array 15311 | -7/Lower Caves | Build established: Scavenger-Mutant 15897 | -7/Lower Caves | Spotted B-75 Beast 16434 | -7/Lower Caves | Discovered new exit (range 15) 16535 | -7/Lower Caves | Identified exit to Lower Caves 16535 | -7/Lower Caves | Entered another Lower Caves area 16882 | -7/Lower Caves | Discovered exit to Factory (range 11) 17128 | -7/Lower Caves | Build established: Mutant 17139 | -7/Lower Caves | Encountered a Warlord checkpoint 17223 | -7/Lower Caves | Spotted WS-HDD(f) 17224 | -7/Lower Caves | Encountered a Master Thief 17224 | -7/Lower Caves | Spotted WX-4IO(f) 17224 | -7/Lower Caves | Spotted U4-L4D(f) 17225 | -7/Lower Caves | Encountered a Master Thief 17225 | -7/Lower Caves | Encountered a Master Thief 17226 | -7/Lower Caves | Spotted 6F-LQ7(f) 17227 | -7/Lower Caves | Encountered a Master Thief 17228 | -7/Lower Caves | Superbattery stolen by Master Thief 17236 | -7/Lower Caves | 8R-AWN's Boregun stolen by Master Thief 17237 | -7/Lower Caves | Missile Launcher stolen by Master Thief 17239 | -7/Lower Caves | Destroyed WS-HDD(f) 17246 | -7/Lower Caves | Deuterium Engine stolen by Master Thief 17250 | -7/Lower Caves | DAS Turret deployed 17251 | -7/Lower Caves | Destroyed U4-L4D(f) 17339 | -7/Lower Caves | Discovered new exit (range 5) 17652 | -7/Lower Caves | Build established: Skirmisher 17798 | -7/Lower Caves | Learned Factory emergency access door positions 18313 | -7/Lower Caves | Identified exit to Zion 18315 | -7/Lower Caves | Entered Zion 18395 | -7/Zion | System corruption cleaned by Quarantine Array 18444 | -7/Zion | Given the Hacking Drone Bay 18444 | -7/Zion | Found Prototype Device 18478 | -7/Zion | Discovered new exit (range 15) 18546 | -7/Zion | Gained Derelict followers 18602 | -7/Zion | Build established: Mutant 18747 | -7/Zion | Learned Factory trap positions 18760 | -7/Zion | Learned Factory emergency access door positions 19807 | -7/Zion | Acquired unknown access codes intercepted by a Zionite 19921 | -7/Zion | Gained Derelict followers 20017 | -7/Zion | Found Relay Coupler [Programmer] 20031 | -7/Zion | Found Relay Coupler [Programmer] 20032 | -7/Zion | Identified Hacking Drone Bay 20040 | -7/Zion | Found Relay Coupler [Programmer] 20043 | -7/Zion | Found Relay Coupler [Programmer] 20046 | -7/Zion | Found Relay Coupler [Programmer] 20215 | -7/Zion | Opened final containment barrier to the Deep Caves 20362 | -7/Zion | Discovered new exit (range 3) 20362 | -7/Zion | Saw the warning signs outside the Deep Caves entrance 20364 | -7/Zion | Identified exit to Deep Caves 20382 | -7/Zion | Entered Deep Caves 20382 | -7/Deep Caves | Accompanied by 8 allies 20871 | -7/Deep Caves | Attacked by Z-Imprinter 20885 | -7/Deep Caves | Allies destroyed Z-Imprinter 21032 | -7/Deep Caves | Z-Facility disabled 21689 | -7/Deep Caves | Discovered new exit (range 6) 21827 | -7/Deep Caves | Found Prototype Protection 21827 | -7/Deep Caves | Identified Zio. Heavy Carapace 21839 | -7/Deep Caves | Found Prototype Protection 21855 | -7/Deep Caves | Found Prototype Protection 21899 | -7/Deep Caves | Found Prototype Protection 21899 | -7/Deep Caves | Identified Zio. Weapon Casing (x3) 22897 | -7/Deep Caves | Spotted as-29762 22925 | -7/Deep Caves | Destroyed as-29762 22931 | -7/Deep Caves | Found Unknown Device 23531 | -7/Deep Caves | Build established: Scavenger-Mutant 23573 | -7/Deep Caves | Spotted as-55855 23610 | -7/Deep Caves | Destroyed as-55855 23630 | -7/Deep Caves | Found Unknown Device 23736 | -7/Deep Caves | Triggered Deep Caves wall 23744 | -7/Deep Caves | Spotted AS-08758 23754 | -7/Deep Caves | Spotted AS-60335 23766 | -7/Deep Caves | Destroyed AS-60335 23775 | -7/Deep Caves | Destroyed AS-08758 23799 | -7/Deep Caves | Found Potential Leg 23844 | -7/Deep Caves | Identified GOLEM Unit (x2) 23850 | -7/Deep Caves | Exposed GOLEM chamber 23854 | -7/Deep Caves | Found GOLEM Unit 23979 | -7/Deep Caves | Build established: Mutant 24434 | -7/Deep Caves | Build established: Golem 24640 | -7/Deep Caves | Found GOLEM Unit 25284 | -7/Deep Caves | Build established: Scavenger-Golem 25560 | -7/Deep Caves | Identified exit to Proximity Caves 25604 | -7/Deep Caves | Entered Proximity Caves 25607 | -6/Proximity Caves | Core integrity fell below 50% 25798 | -6/Proximity Caves | Build established: Golem 26483 | -6/Proximity Caves | Learned 4 Factory zone layouts 26849 | -6/Proximity Caves | Attracted the attention of an 0b10 checkpoint 26859 | -6/Proximity Caves | Discovered exit to Factory (range 3) 27333 | -6/Proximity Caves | Spotted B-75 Beast 27775 | -6/Proximity Caves | Entered Factory 27775 | -6/Factory | Evolved 2 slots: Utility x1, Weapon x1 27776 | -6/Factory | Identified exit to Lower Caves 27777 | -6/Factory | Loaded intel: 95 trap records 28846 | -6/Factory | Cargo convoy interrupted 28963 | -6/Factory | Identified exit to Garrison 28963 | -6/Factory | Entered Garrison 29016 | -6/Garrison | Installed Relay Interface Framework 29172 | -6/Garrison | Triggered checkpoint 29248 | -6/Garrison | Destroyed 7 combat bots 29381 | -6/Garrison | Discovered new exit (range 15) 29429 | -6/Garrison | Identified exit to Factory 29532 | -6/Garrison | Garrison Relay disabled 30244 | -6/Garrison | Entered Factory 30670 | -6/Factory | Fabricated Nova Cannon? 30756 | -6/Factory | Discovered exit to Lower Caves (range 7) 30794 | -6/Factory | Entered Lower Caves 30833 | -6/Lower Caves | Identified exit to Lower Caves 31310 | -6/Lower Caves | Ambushed by wild Derelicts 32107 | -6/Lower Caves | Learned Factory interactive machine intel 32302 | -6/Lower Caves | Entered another Lower Caves area 32343 | -6/Lower Caves | Discovered new exit (range 14) 32404 | -6/Lower Caves | Spotted B-75 Beast 32724 | -6/Lower Caves | Attracted the attention of an 0b10 outpost 32905 | -6/Lower Caves | Attracted the attention of an 0b10 checkpoint 33149 | -6/Lower Caves | Spotted EI-UIN(f) 33150 | -6/Lower Caves | Encountered a Master Thief 33151 | -6/Lower Caves | Potential Leg stolen by Master Thief 33152 | -6/Lower Caves | Spotted 83-ASC(f) 33153 | -6/Lower Caves | Encountered a Master Thief 33154 | -6/Lower Caves | Spotted 6G-CW1(f) 33155 | -6/Lower Caves | Encountered a Master Thief 33155 | -6/Lower Caves | Spotted Y2-4XB(f) 33156 | -6/Lower Caves | Encountered a Master Thief 33156 | -6/Lower Caves | 8R-AWN's Boregun stolen by Master Thief 33157 | -6/Lower Caves | Hvy. Missile Launcher stolen by Master Thief 33165 | -6/Lower Caves | Relay Coupler [NC] stolen by Master Thief 33170 | -6/Lower Caves | Allies destroyed 6G-CW1(f) 33314 | -6/Lower Caves | Discovered new exit (range 11) 33337 | -6/Lower Caves | Entered Data Miner 33337 | -6/Data Miner | Accompanied by 2 allies 33337 | -6/Data Miner | Discovered new exit (range 6) 33377 | -6/Data Miner | Met Data Miner 33415 | -6/Data Miner | Learned location of Section 7 (-2) 33415 | -6/Data Miner | Acquired the access code to Warlord's prototype stash 33453 | -6/Data Miner | Received God Mode back door access code from Data Miner 33500 | -6/Data Miner | Entered Proximity Caves 33500 | -5/Proximity Caves | Accompanied by 2 allies 33634 | -5/Proximity Caves | Build established: Mutant 33795 | -5/Proximity Caves | Escorted by Enhanced Grunt 33925 | -5/Proximity Caves | Attracted the attention of an 0b10 outpost 33989 | -5/Proximity Caves | Destroyed 8 combat bots 33989 | -5/Proximity Caves | Lost 3 parts (2u1w) 34062 | -5/Proximity Caves | Discovered new exit (range 15) 34111 | -5/Proximity Caves | Entered Factory 34111 | -5/Factory | Accompanied by 2 allies 34111 | -5/Factory | Evolved 2 slots: Propulsion x2 34112 | -5/Factory | Identified exit to Upper Caves 34113 | -5/Factory | Loaded intel: 53 interactive machine locations 34850 | -5/Factory | Lost 4 parts (1n2u1w) 35052 | -5/Factory | Lost 3 parts (2u1w) 35165 | -5/Factory | Identified exit to Extension 35166 | -5/Factory | Identified exit to Factory 35507 | -5/Factory | Found Prototype Launcher 35507 | -5/Factory | Identified Scatter Rocket Array 35627 | -5/Factory | Entered Extension 35698 | -5/Extension | Rescued a captive Derelict 35699 | -5/Extension | Rescued a captive Derelict 35758 | -5/Extension | Rescued A7 35807 | -5/Extension | Rescued a captive Derelict 35807 | -5/Extension | Rescued a captive Derelict 35870 | -5/Extension | Rescued a captive Derelict 35878 | -5/Extension | Rescued a captive Derelict 36295 | -5/Extension | Rescued a captive Derelict 36296 | -5/Extension | Rescued a captive Derelict 36446 | -5/Extension | Rescued a captive Derelict 36518 | -5/Extension | Build established: Scavenger-Skirmisher 36683 | -5/Extension | Discovered new exit (range 6) 36692 | -5/Extension | Identified exit to Cetus 36698 | -5/Extension | Entered Cetus 36698 | -5/Cetus | Accompanied by 2 allies (A7) 36703 | -5/Cetus | Acquired a Cetus Manufacturing Module code from A7 36723 | -5/Cetus | Spotted Cetus Guard 36723 | -5/Cetus | Spotted Cetus Guard 36726 | -5/Cetus | Allies destroyed Cetus Guard 36727 | -5/Cetus | Spotted Cetus Guard 36727 | -5/Cetus | Allies destroyed Cetus Guard 36727 | -5/Cetus | Spotted Cetus Guard 36732 | -5/Cetus | Allies destroyed Cetus Guard 36737 | -5/Cetus | Allies destroyed Cetus Guard 36897 | -5/Cetus | Escorted A7 to Cetus Mainframe 36913 | -5/Cetus | Started Cetus Manufacturing Module 36936 | -5/Cetus | Discovered new exit (range 15) 36938 | -5/Cetus | Manufactured an Enhanced Grunt 36963 | -5/Cetus | Manufactured an Enhanced Grunt 36967 | -5/Cetus | Spotted Cetus Guard 36968 | -5/Cetus | Spotted Cetus Guard 36978 | -5/Cetus | Spotted Cetus Guard 36979 | -5/Cetus | Allies destroyed Cetus Guard 36985 | -5/Cetus | Spotted Cetus Guard 36988 | -5/Cetus | Manufactured an Enhanced Grunt 36992 | -5/Cetus | Destroyed Cetus Guard 36997 | -5/Cetus | Extracted ID and sensor layout for unrecognized location from A7's data core 37006 | -5/Cetus | Destroyed Cetus Guard 37013 | -5/Cetus | Manufactured an Enhanced Grunt 37027 | -5/Cetus | Destroyed Cetus Guard 37038 | -5/Cetus | Manufactured an Enhanced Grunt 37052 | -5/Cetus | Discovered exit to Factory (range 15) 37064 | -5/Cetus | Met Revision 17 37152 | -5/Cetus | Identified exit to Archives 37154 | -5/Cetus | Entered Archives 37154 | -5/Archives | Accompanied by 4 allies 37320 | -5/Archives | Discovered new exit (range 15) 37535 | -5/Archives | Discovered exit to Factory (range 15) 37766 | -5/Archives | Identified exit to Hub_04(d) 37974 | -5/Archives | Entered Hub_04(d) 37974 | -5/Hub_04(d) | Accompanied by 4 allies 38331 | -5/Hub_04(d) | Discovered exit to Factory (range 15) 38376 | -5/Hub_04(d) | Discovered exit to Factory (range 13) 38456 | -5/Hub_04(d) | Lost 4 parts (3u1w) 38532 | -5/Hub_04(d) | Network Hub disabled 38537 | -5/Hub_04(d) | Spotted Lightning 38537 | -5/Hub_04(d) | Spotted Lightning 38540 | -5/Hub_04(d) | Spotted Lightning 38557 | -5/Hub_04(d) | Entered Factory 38557 | -4/Factory | Accompanied by 1 ally 38557 | -4/Factory | Evolved 2 slots: Propulsion x1, Utility x1 38558 | -4/Factory | Identified exit to Upper Caves 38582 | -4/Factory | Lost 3 parts (1p1n1u) 38762 | -4/Factory | Build established: Bothacker-Tank 39140 | -4/Factory | Build established: Bothacker-Mutant 39475 | -4/Factory | Crushed by falling debris 39711 | -4/Factory | Identified exit to Research 39720 | -4/Factory | Lost 6 parts (2p1n1u2w) 40057 | -4/Factory | First assault squad dispatched 40072 | -4/Factory | Lost 4 parts (2n1u1w) 40125 | -4/Factory | Lost 5 parts (2n1u2w) 40327 | -4/Factory | Build established: Mutant 40396 | -4/Factory | Entered Upper Caves 40396 | -4/Upper Caves | Accompanied by 2 allies 40725 | -4/Upper Caves | Identified exit to Upper Caves 40849 | -4/Upper Caves | Build established: Golem 40861 | -4/Upper Caves | Learned Research terminal intel 41081 | -4/Upper Caves | Attacked by a delusional Derelict stockpiling Unaware 41218 | -4/Upper Caves | Attracted the attention of an 0b10 checkpoint 41400 | -4/Upper Caves | Build established: Commander-Golem 42795 | -4/Upper Caves | Learned 4 Research zone layouts 42849 | -4/Upper Caves | Entered another Upper Caves area 42849 | -4/Upper Caves | Accompanied by 4 allies 42915 | -4/Upper Caves | Discovered exit to Research (range 9) 43509 | -4/Upper Caves | Build established: Golem 43588 | -4/Upper Caves | Learned 8 Research zone layouts 43772 | -4/Upper Caves | Attracted the attention of an 0b10 checkpoint 43806 | -4/Upper Caves | Learned location of 1 exit from Research 43913 | -4/Upper Caves | Discovered new exit (range 15) 43946 | -4/Upper Caves | Identified exit to Zhirov 44042 | -4/Upper Caves | Entered Zhirov 44042 | -4/Zhirov | Discovered new exit (range 3) 44076 | -4/Zhirov | Met Zhirov 44119 | -4/Zhirov | Found Alien Artifact 44119 | -4/Zhirov | Identified Integrated Reactor 44119 | -4/Zhirov | Installed Integrated Reactor, increased core energy generation (+10) 44141 | -4/Zhirov | Found Alien Artifact 44230 | -4/Zhirov | Learned location of Quarantine (-3) 44230 | -4/Zhirov | Learned location of Testing (-2) 44238 | -4/Zhirov | Zhirov requested help retrieving the SGEMP Prototype 44272 | -4/Zhirov | Identified exit to Proximity Caves 44777 | -4/Zhirov | Entered Proximity Caves 44779 | -3/Proximity Caves | Attracted the attention of an 0b10 checkpoint 45221 | -3/Proximity Caves | Discovered exit to Research (range 16) 45451 | -3/Proximity Caves | Attracted the attention of an 0b10 base 45617 | -3/Proximity Caves | Learned Extension trap positions 45617 | -3/Proximity Caves | Learned Factory stockpile data 45956 | -3/Proximity Caves | Entered Research 45956 | -3/Research | Evolved 2 slots: Propulsion x1, Utility x1 45957 | -3/Research | Identified exit to Quarantine 45958 | -3/Research | Identified exit to Research 45958 | -3/Research | Identified exit to Armory 45959 | -3/Research | Loaded intel: 24 terminal locations 46156 | -3/Research | Revision forces began assault on 0b10 46165 | -3/Research | Met up with Revision 17++ 46264 | -3/Research | Spotted B-86 Titan 46656 | -3/Research | Research terminal network offline 46707 | -3/Research | Build established: Bothacker-Golem 46801 | -3/Research | Spotted Striker 46946 | -3/Research | Entered Armory 46946 | -3/Armory | Identified Transdimensional Reconstructor 46946 | -3/Armory | Warped through subspace to slip node 46946 | -3/Armory | Discovered new exit (range 1) 46948 | -3/Armory | Entered Lab 46993 | -3/Lab | Discovered exit to Research (range 9) 47404 | -3/Lab | Hidden lab's door opened automatically 47404 | -3/Lab | Sensor layout match revealed 47405 | -3/Lab | Gained access to the hidden lab's interior 47423 | -3/Lab | Found Alien Artifact 47436 | -3/Lab | Found Transdimensional Reconstructor 47467 | -3/Lab | Found Integrated Reactor 47467 | -3/Lab | Installed Integrated Reactor, increased core energy generation (+10) 47474 | -3/Lab | Found Alien Artifact 47474 | -3/Lab | Identified Core Expander 47474 | -3/Lab | Installed Core Expander, added new Propulsion slot 47570 | -3/Lab | Found Prototype Special Weapon 47607 | -3/Lab | Found Prototype Energy Cannon 47615 | -3/Lab | Found Prototype Protection 47685 | -3/Lab | Build established: Mutant 47791 | -3/Lab | Found Prototype Hackware 47945 | -3/Lab | Identified Exp. Powered Armor 47947 | -3/Lab | Identified Deep Network Scanner 47961 | -3/Lab | Entered Research 47961 | -2/Research | Evolved 2 slots: Utility x2 48016 | -2/Research | Identified exit to Testing 48138 | -2/Research | Identified Warp Cannon 48181 | -2/Research | Build established: Bothacker-Mutant 48259 | -2/Research | Found Unknown Device 48264 | -2/Research | Identified Antimissile System 48265 | -2/Research | Found Antimissile System 48266 | -2/Research | Identified Gui. Remote Datajack 48328 | -2/Research | Found Prototype Device 48328 | -2/Research | Identified Exp. Transmission Jammer 48332 | -2/Research | Found Exp. Transmission Jammer 48481 | -2/Research | Entered Testing 48559 | -2/Testing | Identified Core Reset Matrix 48776 | -2/Testing | Found Prototype Protection 48860 | -2/Testing | Spotted PD-844EIBCB7Q 48998 | -2/Testing | Found Prototype Launcher 49095 | -2/Testing | Found Prototype Hackware 49294 | -2/Testing | Spotted PH-DSP2CGOWAP 49311 | -2/Testing | Identified SHELL Armor 49405 | -2/Testing | Master 9c assimilated hostile G-73 Enforcer 49446 | -2/Testing | Build established: Scavenger-Mutant 49488 | -2/Testing | Spotted Fortress 49598 | -2/Testing | Discovered new exit (range 5) 49603 | -2/Testing | Identified exit to Section 7 49617 | -2/Testing | Entered Section 7 49617 | -2/Section 7 | Accompanied by 2 allies 49646 | -2/Section 7 | Found Integrated Reactor 49646 | -2/Section 7 | Installed Integrated Reactor, increased core energy generation (+10) 49711 | -2/Section 7 | Found Alien Artifact 49784 | -2/Section 7 | System corruption reached 10% 49796 | -2/Section 7 | Found Alien Artifact 49883 | -2/Section 7 | Identified Ragnarok Missile Launcher 49892 | -2/Section 7 | Master 9e assimilated hostile S-43 Plague 49914 | -2/Section 7 | Build established: Hacker-Mutant 49949 | -2/Section 7 | Spotted S7 Guard 49966 | -2/Section 7 | Discovered new exit (range 8) 49976 | -2/Section 7 | Identified exit to Access 49978 | -2/Section 7 | System corruption reached 30% 49981 | -2/Section 7 | Entered Access 49981 | -1/Access | Accompanied by 2 allies 49981 | -1/Access | Evolved 2 slots: Utility x1, Weapon x1 50134 | -1/Access | Identified Ghost Barrier 50732 | -1/Access | Identified Spacefold Activator 51143 | -1/Access | Discovered new exit (range 7) 51152 | -1/Access | Identified exit to Command 51154 | -1/Access | Entered Command 51241 | -1/Command | Master 10g assimilated hostile W-44 Eye 51439 | -1/Command | First assault squad dispatched 51467 | -1/Command | Incoming assault squad redirected 51487 | -1/Command | Found Prototype Launcher 51487 | -1/Command | Identified Enh. Gamma Bomb Array 51752 | -1/Command | Identified Microwarp Drive 51759 | -1/Command | Disengaged cave seal 51951 | -1/Command | Build established: Hacker-Skirmisher 52300 | -1/Command | Spotted Combat Programmer 52300 | -1/Command | Spotted Combat Programmer 52307 | -1/Command | Combat Programmer assimilated allied 3O-9TK(i) 52310 | -1/Command | Combat Programmer assimilated allied PH-DX7(i) 52326 | -1/Command | System corruption reached 10% 52345 | -1/Command | Destroyed Combat Programmer 52349 | -1/Command | Spotted M Guard 52377 | -1/Command | Destroyed Combat Programmer 52390 | -1/Command | Spotted M Guard 52445 | -1/Command | Destroyed M Guard 52541 | -1/Command | Destroyed M Guard 52541 | -1/Command | All MAIN.C guards destroyed 52566 | -1/Command | Found Prototype Device 52566 | -1/Command | Identified Thermal Barrier 53199 | -1/Command | System corruption reached 30% 53331 | -1/Command | Found Hvy. Reflective Plating 53457 | -1/Command | Failed to warp due to unstable space 53771 | -1/Command | Met MAIN.C 53830 | -1/Command | 0b10 Conduit disabled 53948 | -1/Command | Destroyed MAIN.C Shell 53950 | -1/Command | MAIN.C activated Command garrisons 53956 | -1/Command | Destroyed MAIN.C 53973 | -1/Command | Discovered new exit (range 63) 53973 | -1/Command | Discovered new exit (range 54) 53973 | -1/Command | Extracted map data and part IDs from MAIN.C's data core 54305 | -1/Command | Build established: Scavenger-Mutant 55530 | *** | Establishing 0b11! Last Messages --------------- 55308_ XP5>JCC|IOX=JHQSJZ>RSRMO OEVVLIXPLSS 55325_ System corrupted: Energy discharge (-226). 55342_ O,MQO9P4KATYRE B/N:A8T 55361_ System corrupted: Component data lost. 55376_ System corrupted: Energy discharge (-145). 55394_ System corrupted: Matter fused (-9). 55406_ Acquired 14 matter. 55407_ Acquired 70 matter. 55409_ Acquired 50 matter. 55409_ Acquired 4 matter. 55410_ Acquired 51 matter. 55410_ Acquired 7 matter. 55410_ Acquired 21 matter. 55412_ System corrupted: Component data lost. 55427_ System corrupted: Energy discharge (-133). 55442_ System corrupted: Heat flow error (+149). 55480_ 0NC88QBIQTJA/%K 81WW%|OQOINUPP,BEV7K 55495_ System corrupted: Matter fused (-6). 55527_ System corrupted: Heat flow error (+140). [Achievement: Commander 0b11] Map ----- +----------------------------------------------------+ | # ###+###### ##+########%* #???????????? | | # #?# ## ## #??# #???????????? | | # #?# ## ## = #??# #???????????? | | # #?# ## ## #??# !!! #???????????? | | # ### ! ## ## #??# !!! #???????????? | | ## ## ## #??# !! #???????????? | | ## ## ##= #??# #???????????? | | ## ## #########??# #???????????? | | ## ""## #??????????# #???????????? | | # ### ""## #???########+###+###+#???????????? | | # #?# T"## ##??# + #???????????? | | # ### ""# #??# !** # #???????????? | | # + ""# #??#% !** + #????######## | | # ### # #??# ** # #????#??????? | | # ##?# # #??# =#^^^##+###??#?###### | | # #??#####+### ##??# # # #??#?# "" | | # #?#### ## #???# ""T"" # # #??#?#"" | | # #?# "" ## #???# """"" # # #??#?#""""" | | # #?# ## T ############### # #??#?#""""" | | # #?# ## # #??#?#" " | | # #?# ### #################### # #??#?#"" " | | #+###+### #??????????????????# # !#??#?#"" " | | ## #??????????????????# # #??#?# " " | | ## #???????????#####??# # #??#?# " | | ## ##??????????# #??# ######??#?# " | | # ############ @ #??# [*#???????#?#""""" | | + #??# !%#???????#?#"" | | # #??# =!#???????#?# | | # #####+##########??# #???????#?# | | ####### #???????# ########### | | ####### #???????# =| | | + + #???????# !%![ | | ####### #???????# ==%=[ | | #?????# * #???????# ####+###### "" | | ########?????#######+########## ## % #?#?# " | | ?????????????????# #! ## #?#?# | | ?????????????????# ! #%! ## #?#?###### | | ?????????????????#"" # ## #?#??????? | | ?????????????????#""" # #### #?######## | | ?????????????????#"R # #??# #????????? | | ?????????????????#""" """" # #??# #????????? | | ?????????????????#"" """" # #??# #????????? | | ?????????????????# ! """" # #??# #????????? | | ?????????????????# """" # ####+####????????? | | ?????????????????# # # #????????? | | ?????????????????# # # #????????? | | ?????????????????# # # #????????? | | ???????###################+#### # #????????? | | ???????# = + %= # #????????? | | ???????# # = % + #????????? | +----------------------------------------------------+ Best States ------------- Heat Dissipation 124 Coolant Potential 200 Energy Generation 73 Energy Capacity 2100 Matter Stores 700 Matter Capacity 700 Sight Range 22 Robot Scan Range 20 Terrain Scan Density 10 Jamming Range 22 Cloak Strength 3 Power Amplification 30 Additional Mass Support 20 Armor Coverage 2800 Resistance: KI 30 Resistance: TH 50 Resistance: EX 15 Resistance: EM 25 Resistance: I 15 Resistance: S 15 Resistance: P 15 Power Shielding 33 Propulsion Shielding 66 Weapon Shielding 100 Point Defense Rating 480 Weapon Cycling 25 Phase Shifting 8 Evasion (%) 63 Targeting Accuracy 8 Target Analysis 8 Core Analysis 8 Recoil Reduction 7 Energy Filtering 30 Particle Charging 30 Offensive Hacking 32 Defensive Hacking 20 Relay Coupler Types 2 Relay Coupler Value 119 Trap Extractor Capacity 6 Item Schematics ----------------- Huge Storage Unit | -7/Factory | Hacked Transmission Jammer | -7/Zion | Archive Hyp. Gauss Rifle | -7/Zion | Archive Mak. Hammer | -7/Zion | Archive Arc Thrower | -7/Zion | Archive Hvy. Ion Cannon | -7/Zion | Archive Thermic Laser | -7/Zion | Archive Mak. Laser | -7/Zion | Archive Mak. Trap Scanner | -7/Zion | Archive Hvy. Treads | -7/Zion | Archive Hrd. Heavy Armor Plating | -7/Zion | Archive Lrn. Missile Launcher | -7/Zion | Archive Coil Gun | -7/Zion | Archive Imp. Cooling System | -7/Zion | Archive Armor Integrity Analyzer | -7/Zion | Archive Drone Bay | -7/Zion | Archive Combat Drone Bay | -6/Data Miner | Free Lgt. Regenerative Plating | -6/Data Miner | Free Cld. Gravmag System | -6/Data Miner | Free Imp. Matter Compressor | -6/Data Miner | Free Hvy. Proton Cannon | -6/Data Miner | Free Adv. Medium Treads | -6/Data Miner | Free Q-thruster | -6/Data Miner | Free Adv. Coolant Injector | -6/Data Miner | Free Hvy. Gauss Cannon | -6/Data Miner | Free Point Defense Array | -6/Data Miner | Free Assault Drone Bay | -4/Zhirov | Free Exp. Heat Sink | -4/Zhirov | Free Exp. Optical Array | -4/Zhirov | Free Imp. Arc Thrower | -4/Zhirov | Free Exp. Target Analyzer | -2/Section 7 | Archive Cld. Proton Cannon | -2/Section 7 | Archive Imp. Energy Mantle | -2/Section 7 | Archive Exp. Coolant Injector | -2/Section 7 | Archive Exp. Actuator Array | -2/Section 7 | Archive Cld. Q-thruster | -2/Section 7 | Archive Exp. EM Disruption Field | -2/Section 7 | Archive Imp. Diametric Drive | -2/Section 7 | Archive Tesla Bomb Launcher | -2/Section 7 | Archive Exp. Core Analyzer | -2/Section 7 | Archive Robot Schematics ------------------ L-41 Fighter | -7/Zion | Archive L-31 Rogue | -7/Zion | Archive G-73 Enforcer | -7/Zion | Archive X-62 Marksman | -6/Data Miner | Free G-50 Soldier | -6/Data Miner | Free A-15 Conveyor | -6/Data Miner | Free S-27 Virus | -6/Data Miner | Free G-67 Veteran | -6/Data Miner | Free H-66 Slayer | -6/Data Miner | Free R-06 Scavenger | -2/Section 7 | Archive Fabricated ------------ Huge Storage Unit | x1 | -7/Factory Nova Cannon | x1 | -6/Factory | Preloaded Alien Tech Used ----------------- Integrated Reactor Transdimensional Reconstructor Core Expander Spacefold Activator Microwarp Drive Achievements -------------- Commander 0b11 Challenges ------------ None Game ------ Seed PortableCoolantBox Manual? 0 Play Time 04:16:13 Cumulative 364.2 hours Start 2023.05.27 @ 09:46:53 End 2023.05.28 @ 06:59:39 Sessions 11 Manual Loads 0 Difficulty Rogue Special Mode None Game No. 513 Rogue 486 Adventurer 4 Explorer 23 Win Type 1 Total 20 Types 14/1/2/2/1/0/0/0/0 Lore% 81 Gallery% 93 Achievement% 82 Wizard Run 0 Options --------- ASCII 0 Keyboard 1 Movement Numpad Keybinds 0 Fullscreen 1 Font 18/SmallcapsGlow Map View 76x50 Tactical HUD 1 Map Filters NONE Filters NONE Steam 1 RUN: cce624e9-a6b3-4709-966f-80c431d46409